Department Family,Entity,Date Paid,Expense Type,Expense Area,Supplier,Transaction Number,Amount (�),Supplier VAT Registration Number
BEIS,Met Office,2021-02-09,06 ACCOMMODATION,CHIEF FINANCIAL OFFICER,A & J GARDEN SERVICES LTD,452111,505,190817003
BEIS,Met Office,2021-02-23,06 ACCOMMODATION,CHIEF FINANCIAL OFFICER,A & J GARDEN SERVICES LTD,452611,450,190817003
BEIS,Met Office,2021-02-02,13 MISCELLANEOUS,SCIENCE,AB MULTIMEDIA LTD,451493,562.5,849333502
BEIS,Met Office,2021-02-09,13 MISCELLANEOUS,SCIENCE,AB MULTIMEDIA LTD,452114,50,849333502
BEIS,Met Office,2021-02-23,13 MISCELLANEOUS,SCIENCE,AB MULTIMEDIA LTD,452328,1200,849333502
BEIS,Met Office,2021-02-23,13 MISCELLANEOUS,SCIENCE,AB MULTIMEDIA LTD,452328,2000,849333502
BEIS,Met Office,2021-02-02,06 ACCOMMODATION,CHIEF FINANCIAL OFFICER,ABOVE THE REST COMMERCIAL CLEANING LTD,450820,38,166969348
BEIS,Met Office,2021-02-23,06 ACCOMMODATION,CHIEF FINANCIAL OFFICER,ABOVE THE REST COMMERCIAL CLEANING LTD,452591,565,166969348
BEIS,Met Office,2021-02-23,06 ACCOMMODATION,CHIEF FINANCIAL OFFICER,ABOVE THE REST COMMERCIAL CLEANING LTD,452624,38,166969348
BEIS,Met Office,2021-02-11,11 SERVICES,MARKETS,ACCELERATION EMARKETING,451999,3909.27,848940776
BEIS,Met Office,2021-02-23,11 SERVICES,PEOPLE,ADJUST,452457,990,-
BEIS,Met Office,2021-02-09,11 SERVICES,MARKETS,ADOPSTAR,451967,1250,115036848
BEIS,Met Office,2021-02-23,11 SERVICES,CHIEF FINANCIAL OFFICER,ADT FIRE AND SECURITY PLC,451284,1090.17,413633086
BEIS,Met Office,2021-02-23,11 SERVICES,CHIEF FINANCIAL OFFICER,ADT FIRE AND SECURITY PLC,452594,-351.28,413633086
BEIS,Met Office,2021-02-23,11 SERVICES,CHIEF FINANCIAL OFFICER,ADT FIRE AND SECURITY PLC,452595,175.64,413633086
BEIS,Met Office,2021-02-25,11 SERVICES,CHIEF FINANCIAL OFFICER,ADT FIRE AND SECURITY PLC,452728,333.12,413633086
BEIS,Met Office,2021-02-25,11 SERVICES,CHIEF FINANCIAL OFFICER,ADT FIRE AND SECURITY PLC,452729,211.97,413633086
BEIS,Met Office,2021-02-03,12 INTERNATIONAL,SERVICES,AGENCIA ESTATAL DE METEOROLOGIA,22267,17760.1,-
BEIS,Met Office,2021-02-25,11 SERVICES,PEOPLE,AGENT MARKETING,452523,9140.5,892 5045 08
BEIS,Met Office,2021-02-23,03 STAFF COSTS T&S,SERVICES,AIRPORT CAR RENTALS LTD,452598,320,-
BEIS,Met Office,2021-02-11,03 STAFF COSTS T&S,SERVICES,AIRPORT OPERATORS ASSOCIATION,451773,3100,743855311
BEIS,Met Office,2021-02-09,11 SERVICES,TECHNOLOGY AND CIO,AKAMAI TECHNOLOGIES LTD,452112,4918.08,745091237
BEIS,Met Office,2021-02-09,11 SERVICES,TECHNOLOGY AND CIO,AKAMAI TECHNOLOGIES LTD,452112,25819.95,745091237
BEIS,Met Office,2021-02-09,11 SERVICES,CHIEF FINANCIAL OFFICER,ALLSTAR BUSINESS SOLUTIONS LTD,452144,421.71,747880191
BEIS,Met Office,2021-02-18,11 SERVICES,CHIEF FINANCIAL OFFICER,ALLSTAR BUSINESS SOLUTIONS LTD,452530,774.64,747880191
BEIS,Met Office,2021-02-17,11 SERVICES,TECHNOLOGY AND CIO,AMAZON WEB SERVICES INC.,10077,68978.94,N/A
BEIS,Met Office,2021-02-17,11 SERVICES,TECHNOLOGY AND CIO,AMAZON WEB SERVICES INC.,10077,20551.05,N/A
BEIS,Met Office,2021-02-09,11 SERVICES,TECHNOLOGY AND CIO,AMAZON WEB SERVICES INC.,10079,0.6,N/A
BEIS,Met Office,2021-02-09,11 SERVICES,TECHNOLOGY AND CIO,AMAZON WEB SERVICES INC.,10082,11301.48,N/A
BEIS,Met Office,2021-02-09,11 SERVICES,TECHNOLOGY AND CIO,AMAZON WEB SERVICES INC.,10090,1677.3,N/A
BEIS,Met Office,2021-02-09,11 SERVICES,TECHNOLOGY AND CIO,AMAZON WEB SERVICES INC.,10091,1566.46,N/A
BEIS,Met Office,2021-02-09,06 ACCOMMODATION,CHIEF FINANCIAL OFFICER,ANGLIAN WATER BUSINESS NATIONAL LTD,451956,88.32,51406002
BEIS,Met Office,2021-02-09,06 ACCOMMODATION,CHIEF FINANCIAL OFFICER,ANGLIAN WATER BUSINESS NATIONAL LTD,451961,144.44,51406002
BEIS,Met Office,2021-02-09,13 MISCELLANEOUS,CHIEF FINANCIAL OFFICER,ANTRIM HILLS SPRING WATER CO LTD,452048,27,517173455
BEIS,Met Office,2021-02-11,11 SERVICES,CHIEF FINANCIAL OFFICER,ANVIL MOBILE LIMITED,452139,82.6,981686175
BEIS,Met Office,2021-02-11,11 SERVICES,CHIEF FINANCIAL OFFICER,ANVIL MOBILE LIMITED,452139,98.6,981686175
BEIS,Met Office,2021-02-11,11 SERVICES,CHIEF FINANCIAL OFFICER,ANVIL MOBILE LIMITED,452139,111.3,981686175
BEIS,Met Office,2021-02-11,11 SERVICES,CHIEF FINANCIAL OFFICER,ANVIL MOBILE LIMITED,452139,34.85,981686175
BEIS,Met Office,2021-02-11,11 SERVICES,CHIEF FINANCIAL OFFICER,ANVIL MOBILE LIMITED,452139,43.6,981686175
BEIS,Met Office,2021-02-16,11 SERVICES,CHIEF FINANCIAL OFFICER,APPLE CENTRAL TAXIS,452395,306.7,449238720
BEIS,Met Office,2021-02-23,11 SERVICES,SERVICES,APPLIED SATELLITE TECHNOLOGY SYSTEMS LTD,452648,56.18,720108683
BEIS,Met Office,2021-02-23,11 SERVICES,SERVICES,APPLIED SATELLITE TECHNOLOGY SYSTEMS LTD,452649,30.53,720108683
BEIS,Met Office,2021-02-23,11 SERVICES,SERVICES,APPLIED SATELLITE TECHNOLOGY SYSTEMS LTD,452650,442.6,720108683
BEIS,Met Office,2021-02-23,12 INTERNATIONAL,MARKETS,APPLIED SATELLITE TECHNOLOGY SYSTEMS LTD,452651,30.38,720108683
BEIS,Met Office,2021-02-23,11 SERVICES,SERVICES,APPLIED SATELLITE TECHNOLOGY SYSTEMS LTD,452652,9869.11,720108683
BEIS,Met Office,2021-02-02,11 SERVICES,PROGRAMMES,Arup,451748,21346,524461265
BEIS,Met Office,2021-02-11,13 MISCELLANEOUS,SERVICES,AUTOMATED DOCUMENT SERVICES LTD,451814,12247.82,105353449
BEIS,Met Office,2021-02-11,13 MISCELLANEOUS,SERVICES,AUTOMATED DOCUMENT SERVICES LTD,452231,-405.02,105353449
BEIS,Met Office,2021-02-17,11 SERVICES,SERVICES,"AXYS TECHNOLOGIES, INC",10085,109.37,-
BEIS,Met Office,2021-02-09,11 SERVICES,SERVICES,"AXYS TECHNOLOGIES, INC",10099,109.37,-
BEIS,Met Office,2021-02-09,11 SERVICES,SERVICES,"AXYS TECHNOLOGIES, INC",9793,120.67,-
BEIS,Met Office,2021-02-02,11 SERVICES,TECHNOLOGY AND CIO,BAE SYSTEMS APPLIED INTELLIGENCE LIMITED,448827,990,GB641407169
BEIS,Met Office,2021-02-02,11 SERVICES,TECHNOLOGY AND CIO,BAE SYSTEMS APPLIED INTELLIGENCE LIMITED,448827,13200,GB641407169
BEIS,Met Office,2021-02-11,11 SERVICES,TECHNOLOGY AND CIO,BAE SYSTEMS APPLIED INTELLIGENCE LIMITED,449233,9731.25,GB641407169
BEIS,Met Office,2021-02-02,11 SERVICES,PROGRAMMES,BAE SYSTEMS APPLIED INTELLIGENCE LIMITED,451418,40439,GB641407169
BEIS,Met Office,2021-02-04,11 SERVICES,TECHNOLOGY AND CIO,BAE SYSTEMS APPLIED INTELLIGENCE LIMITED,451419,7260,GB641407169
BEIS,Met Office,2021-02-02,11 SERVICES,PROGRAMMES,BAE SYSTEMS APPLIED INTELLIGENCE LIMITED,451764,16884,GB641407169
BEIS,Met Office,2021-02-09,11 SERVICES,TECHNOLOGY AND CIO,BAE SYSTEMS APPLIED INTELLIGENCE LIMITED,451766,9045.36,GB641407169
BEIS,Met Office,2021-02-09,11 SERVICES,TECHNOLOGY AND CIO,BAE SYSTEMS APPLIED INTELLIGENCE LIMITED,451767,9900,GB641407169
BEIS,Met Office,2021-02-09,11 SERVICES,TECHNOLOGY AND CIO,BAE SYSTEMS APPLIED INTELLIGENCE LIMITED,451768,7574.56,GB641407169
BEIS,Met Office,2021-02-09,11 SERVICES,TECHNOLOGY AND CIO,BAE SYSTEMS APPLIED INTELLIGENCE LIMITED,451770,8115.6,GB641407169
BEIS,Met Office,2021-02-09,11 SERVICES,TECHNOLOGY AND CIO,BAE SYSTEMS APPLIED INTELLIGENCE LIMITED,451771,10279.76,GB641407169
BEIS,Met Office,2021-02-09,11 SERVICES,TECHNOLOGY AND CIO,BAE SYSTEMS APPLIED INTELLIGENCE LIMITED,451772,7845.08,GB641407169
BEIS,Met Office,2021-02-09,11 SERVICES,TECHNOLOGY AND CIO,BAE SYSTEMS APPLIED INTELLIGENCE LIMITED,451774,7200,GB641407169
BEIS,Met Office,2021-02-09,11 SERVICES,TECHNOLOGY AND CIO,BAE SYSTEMS APPLIED INTELLIGENCE LIMITED,451981,20100.8,GB641407169
BEIS,Met Office,2021-02-09,11 SERVICES,TECHNOLOGY AND CIO,BAE SYSTEMS APPLIED INTELLIGENCE LIMITED,451982,10890,GB641407169
BEIS,Met Office,2021-02-09,11 SERVICES,TECHNOLOGY AND CIO,BAE SYSTEMS APPLIED INTELLIGENCE LIMITED,452130,12540,GB641407169
BEIS,Met Office,2021-02-09,11 SERVICES,TECHNOLOGY AND CIO,BAE SYSTEMS APPLIED INTELLIGENCE LIMITED,452131,9900,GB641407169
BEIS,Met Office,2021-02-09,11 SERVICES,TECHNOLOGY AND CIO,BAE SYSTEMS APPLIED INTELLIGENCE LIMITED,452133,13200,GB641407169
BEIS,Met Office,2021-02-09,11 SERVICES,TECHNOLOGY AND CIO,BAE SYSTEMS APPLIED INTELLIGENCE LIMITED,452134,10279.76,GB641407169
BEIS,Met Office,2021-02-16,11 SERVICES,TECHNOLOGY AND CIO,BAE SYSTEMS APPLIED INTELLIGENCE LIMITED,452329,10820.8,GB641407169
BEIS,Met Office,2021-02-18,11 SERVICES,PROGRAMMES,BAE SYSTEMS APPLIED INTELLIGENCE LIMITED,452330,18760,GB641407169
BEIS,Met Office,2021-02-18,11 SERVICES,TECHNOLOGY AND CIO,BAE SYSTEMS APPLIED INTELLIGENCE LIMITED,452331,9900,GB641407169
BEIS,Met Office,2021-02-16,11 SERVICES,TECHNOLOGY AND CIO,BAE SYSTEMS APPLIED INTELLIGENCE LIMITED,452332,12870,GB641407169
BEIS,Met Office,2021-02-18,11 SERVICES,PROGRAMMES,BAE SYSTEMS APPLIED INTELLIGENCE LIMITED,452400,18760,GB641407169
BEIS,Met Office,2021-02-16,11 SERVICES,TECHNOLOGY AND CIO,BAE SYSTEMS APPLIED INTELLIGENCE LIMITED,452403,9000,GB641407169
BEIS,Met Office,2021-02-02,11 SERVICES,PEOPLE,BANK OF CREATIVITY,451746,6250,-
BEIS,Met Office,2021-02-18,13 MISCELLANEOUS,CHIEF FINANCIAL OFFICER,BANNER GROUP LIMITED,452443,29.62,GB391085740
BEIS,Met Office,2021-02-09,11 SERVICES,MARKETS,"BASILIO SOZINHO CUBULA SERVI�OS, E.I.",10100,3700.5,N/A
BEIS,Met Office,2021-02-17,11 SERVICES,MARKETS,"BASILIO SOZINHO CUBULA SERVI�OS, E.I.",10118,3556.13,N/A
BEIS,Met Office,2021-02-02,11 SERVICES,MARKETS,BBC MEDIA ACTION,451690,1750,GB333289454
BEIS,Met Office,2021-02-16,11 SERVICES,MARKETS,BEIS,452258,502860,888825550
BEIS,Met Office,2021-02-16,11 SERVICES,PEOPLE,BEIS,452449,8891.99,888825550
BEIS,Met Office,2021-02-16,06 ACCOMMODATION,CHIEF FINANCIAL OFFICER,Belfast International Airport Ltd,452326,238.75,617777601
BEIS,Met Office,2021-02-09,06 ACCOMMODATION,CHIEF FINANCIAL OFFICER,BIDVEST NOONAN UK LTD,451986,387.16,GB847176988
BEIS,Met Office,2021-02-09,06 ACCOMMODATION,CHIEF FINANCIAL OFFICER,BIDVEST NOONAN UK LTD,452039,871.43,GB847176988
BEIS,Met Office,2021-02-23,06 ACCOMMODATION,CHIEF FINANCIAL OFFICER,Biffa Waste Services Ltd,452681,262.47,537911627
BEIS,Met Office,2021-02-23,06 ACCOMMODATION,CHIEF FINANCIAL OFFICER,Biffa Waste Services Ltd,452682,97.11,537911627
BEIS,Met Office,2021-02-23,06 ACCOMMODATION,CHIEF FINANCIAL OFFICER,Biffa Waste Services Ltd,452683,563.55,537911627
BEIS,Met Office,2021-02-23,06 ACCOMMODATION,CHIEF FINANCIAL OFFICER,Biffa Waste Services Ltd,452684,61.1,537911627
BEIS,Met Office,2021-02-23,06 ACCOMMODATION,CHIEF FINANCIAL OFFICER,Biffa Waste Services Ltd,452685,66.95,537911627
BEIS,Met Office,2021-02-23,06 ACCOMMODATION,CHIEF FINANCIAL OFFICER,Biffa Waste Services Ltd,452686,378.04,537911627
BEIS,Met Office,2021-02-23,06 ACCOMMODATION,CHIEF FINANCIAL OFFICER,Biffa Waste Services Ltd,452687,540.02,537911627
BEIS,Met Office,2021-02-23,06 ACCOMMODATION,CHIEF FINANCIAL OFFICER,Biffa Waste Services Ltd,452688,538.07,537911627
BEIS,Met Office,2021-02-11,11 SERVICES,PROGRAMMES,BJSS LIMITED,452141,81093.75,613295452
BEIS,Met Office,2021-02-16,11 SERVICES,PROGRAMMES,BJSS LIMITED,452323,5000,613295452
BEIS,Met Office,2021-02-16,04 CONTRACTORS,PROGRAMMES,BJSS LIMITED,452324,17000,613295452
BEIS,Met Office,2021-02-16,11 SERVICES,PROGRAMMES,BJSS LIMITED,452325,5100,613295452
BEIS,Met Office,2021-02-16,11 SERVICES,PROGRAMMES,BJSS LIMITED,452325,5950,613295452
BEIS,Met Office,2021-02-16,11 SERVICES,PROGRAMMES,BJSS LIMITED,452325,5950,613295452
BEIS,Met Office,2021-02-23,STOCK,SERVICES,BLACK BOX NETWORK SERVICES (UK) LTD,452520,0,GB834864303
BEIS,Met Office,2021-02-23,STOCK,SERVICES,BLACK BOX NETWORK SERVICES (UK) LTD,452520,0,GB834864303
BEIS,Met Office,2021-02-23,TRADE CREDITORS,SERVICES,BLACK BOX NETWORK SERVICES (UK) LTD,452520,2932.65,GB834864303
BEIS,Met Office,2021-02-23,TRADE CREDITORS,SERVICES,BLACK BOX NETWORK SERVICES (UK) LTD,452520,1825.5,GB834864303
BEIS,Met Office,2021-02-23,11 SERVICES,SERVICES,BLACK BOX NETWORK SERVICES (UK) LTD,452520,12.5,GB834864303
BEIS,Met Office,2021-02-11,11 SERVICES,SERVICES,BOC LTD,452050,11676.02,226556555
BEIS,Met Office,2021-02-17,11 SERVICES,SCIENCE,B-OPEN SOLUTIONS SRL,22264,39960.22,-
BEIS,Met Office,2021-02-02,11 SERVICES,MARKETS,BRAY LEINO LTD,451828,12492.94,135605525
BEIS,Met Office,2021-02-09,06 ACCOMMODATION,CHIEF FINANCIAL OFFICER,BRITISH GAS TRADING LTD,451918,340.6,684966762
BEIS,Met Office,2021-02-09,06 ACCOMMODATION,CHIEF FINANCIAL OFFICER,BRITISH GAS TRADING LTD,451919,1239.05,684966762
BEIS,Met Office,2021-02-18,06 ACCOMMODATION,CHIEF FINANCIAL OFFICER,BRITISH GAS TRADING LTD,452516,6520.38,684966762
BEIS,Met Office,2021-02-18,06 ACCOMMODATION,CHIEF FINANCIAL OFFICER,BRITISH GAS TRADING LTD,452517,6730.49,684966762
BEIS,Met Office,2021-02-23,11 SERVICES,CHIEF FINANCIAL OFFICER,BT CONFERENCING,452593,135.28,245719348
BEIS,Met Office,2021-02-04,11 SERVICES,CHIEF FINANCIAL OFFICER,BT GLOBAL SERVICES,451799,16094.61,245719348
BEIS,Met Office,2021-02-23,11 SERVICES,CHIEF FINANCIAL OFFICER,BT GLOBAL SERVICES,452622,20010.99,245719348
BEIS,Met Office,2021-02-02,11 SERVICES,CHIEF FINANCIAL OFFICER,BT PLC,451749,876.22,245719348
BEIS,Met Office,2021-02-09,11 SERVICES,CHIEF FINANCIAL OFFICER,BT PLC,451957,12298.15,245719348
BEIS,Met Office,2021-02-25,11 SERVICES,CHIEF FINANCIAL OFFICER,BT PLC,452821,876.22,245719348
BEIS,Met Office,2021-02-11,11 SERVICES,CHIEF FINANCIAL OFFICER,BUILDING PROTECTION SYSTEMS (NI) LTD,452113,67.53,366309834
BEIS,Met Office,2021-02-23,06 ACCOMMODATION,CHIEF FINANCIAL OFFICER,BUSINESS SUPPORT CENTRE LTD,438182,1253.78,927365208
BEIS,Met Office,2021-02-23,06 ACCOMMODATION,CHIEF FINANCIAL OFFICER,BUSINESS SUPPORT CENTRE LTD,445196,-2823.4,927365208
BEIS,Met Office,2021-02-23,06 ACCOMMODATION,CHIEF FINANCIAL OFFICER,BUSINESS SUPPORT CENTRE LTD,445197,28.08,927365208
BEIS,Met Office,2021-02-23,06 ACCOMMODATION,CHIEF FINANCIAL OFFICER,BUSINESS SUPPORT CENTRE LTD,445237,13.02,927365208
BEIS,Met Office,2021-02-23,10 EQUIPMENT MAINTENANCE,SERVICES,BUSINESS SUPPORT CENTRE LTD,449106,108,927365208
BEIS,Met Office,2021-02-23,06 ACCOMMODATION,CHIEF FINANCIAL OFFICER,BUSINESS SUPPORT CENTRE LTD,449155,115.08,927365208
BEIS,Met Office,2021-02-23,06 ACCOMMODATION,CHIEF FINANCIAL OFFICER,BUSINESS SUPPORT CENTRE LTD,450015,967.12,927365208
BEIS,Met Office,2021-02-23,06 ACCOMMODATION,CHIEF FINANCIAL OFFICER,BUSINESS SUPPORT CENTRE LTD,452037,120.26,927365208
BEIS,Met Office,2021-02-23,10 EQUIPMENT MAINTENANCE,SERVICES,BUSINESS SUPPORT CENTRE LTD,452371,105,927365208
BEIS,Met Office,2021-02-23,06 ACCOMMODATION,CHIEF FINANCIAL OFFICER,BUSINESS SUPPORT CENTRE LTD,452647,967.12,927365208
BEIS,Met Office,2021-02-02,11 SERVICES,PEOPLE,BW TRAINING LTD,451656,395,-
BEIS,Met Office,2021-02-09,11 SERVICES,PEOPLE,BW TRAINING LTD,452040,395,-
BEIS,Met Office,2021-02-09,11 SERVICES,PEOPLE,BW TRAINING LTD,452043,395,-
BEIS,Met Office,2021-02-16,11 SERVICES,PEOPLE,BW TRAINING LTD,452322,395,-
BEIS,Met Office,2021-02-09,11 SERVICES,MARKETS,CACI LTD,452089,71180.07,380609841
BEIS,Met Office,2021-02-02,06 ACCOMMODATION,CHIEF FINANCIAL OFFICER,CALOR GAS LIMITED,451800,34.25,207610984
BEIS,Met Office,2021-02-09,06 ACCOMMODATION,CHIEF FINANCIAL OFFICER,CALOR GAS LIMITED,451962,34.25,207610984
BEIS,Met Office,2021-02-09,06 ACCOMMODATION,CHIEF FINANCIAL OFFICER,CALOR GAS LIMITED,451963,49.18,207610984
BEIS,Met Office,2021-02-09,06 ACCOMMODATION,CHIEF FINANCIAL OFFICER,CALOR GAS LIMITED,451964,34.25,207610984
BEIS,Met Office,2021-02-09,06 ACCOMMODATION,CHIEF FINANCIAL OFFICER,CALOR GAS LIMITED,451965,34.25,207610984
BEIS,Met Office,2021-02-09,06 ACCOMMODATION,CHIEF FINANCIAL OFFICER,CALOR GAS LIMITED,451966,34.25,207610984
BEIS,Met Office,2021-02-23,06 ACCOMMODATION,CHIEF FINANCIAL OFFICER,CALOR GAS LIMITED,452692,19.61,207610984
BEIS,Met Office,2021-02-23,06 ACCOMMODATION,CHIEF FINANCIAL OFFICER,CALOR GAS LIMITED,452693,34.25,207610984
BEIS,Met Office,2021-02-25,INFORMATION TECHNOLOGY,PROGRAMMES,Campbell Scientific Ltd,448778,1728,428453933
BEIS,Met Office,2021-02-25,INFORMATION TECHNOLOGY,PROGRAMMES,Campbell Scientific Ltd,450259,4513.5,428453933
BEIS,Met Office,2021-02-09,STOCK,SERVICES,Campbell Scientific Ltd,452061,19,428453933
BEIS,Met Office,2021-02-09,TRADE CREDITORS,SERVICES,Campbell Scientific Ltd,452061,5913,428453933
BEIS,Met Office,2021-02-23,10 EQUIPMENT MAINTENANCE,SERVICES,Campbell Scientific Ltd,452524,65,428453933
BEIS,Met Office,2021-02-23,11 SERVICES,SERVICES,Campbell Scientific Ltd,452524,16,428453933
BEIS,Met Office,2021-02-25,13 MISCELLANEOUS,CHIEF FINANCIAL OFFICER,CANON UK LTD,452808,11812.72,523797128
BEIS,Met Office,2021-02-04,06 ACCOMMODATION,CHIEF FINANCIAL OFFICER,CARDIFF EXECUTIVE CENTRE LTD,451888,2470,864497378
BEIS,Met Office,2021-02-16,03 STAFF COSTS T&S,SERVICES,CARTUS FINANCING LTD,449722,26.02,768489458
BEIS,Met Office,2021-02-16,03 STAFF COSTS T&S,SERVICES,CARTUS FINANCING LTD,450713,252.85,768489458
BEIS,Met Office,2021-02-11,03 STAFF COSTS T&S,SERVICES,CARTUS FINANCING LTD,452064,265.32,768489458
BEIS,Met Office,2021-02-11,03 STAFF COSTS T&S,SERVICES,CARTUS LTD,451079,588.9,768489458
BEIS,Met Office,2021-02-25,03 STAFF COSTS T&S,SERVICES,CARTUS LTD,452779,895.75,768489458
BEIS,Met Office,2021-02-25,03 STAFF COSTS T&S,SERVICES,CARTUS LTD,452780,3887.16,768489458
BEIS,Met Office,2021-02-25,03 STAFF COSTS T&S,SERVICES,CARTUS LTD,452782,603,768489458
BEIS,Met Office,2021-02-25,03 STAFF COSTS T&S,SERVICES,CARTUS LTD,452783,330.24,768489458
BEIS,Met Office,2021-02-09,11 SERVICES,PEOPLE,CATALYST IT,452070,1301.87,978169262
BEIS,Met Office,2021-02-02,06 ACCOMMODATION,CHIEF FINANCIAL OFFICER,CBRE,449352,-3749.42,863613615
BEIS,Met Office,2021-02-02,06 ACCOMMODATION,CHIEF FINANCIAL OFFICER,CBRE,450591,3749.42,863613615
BEIS,Met Office,2021-02-02,06 ACCOMMODATION,CHIEF FINANCIAL OFFICER,CBRE,451803,53.2,863613615
BEIS,Met Office,2021-02-02,06 ACCOMMODATION,CHIEF FINANCIAL OFFICER,CBRE MANAGED SERVICES LTD,451031,33014.69,853936883
BEIS,Met Office,2021-02-02,06 ACCOMMODATION,CHIEF FINANCIAL OFFICER,CBRE MANAGED SERVICES LTD,451651,32936.96,853936883
BEIS,Met Office,2021-02-02,06 ACCOMMODATION,CHIEF FINANCIAL OFFICER,CBRE MANAGED SERVICES LTD,451652,141920.1,853936883
BEIS,Met Office,2021-02-02,06 ACCOMMODATION,CHIEF FINANCIAL OFFICER,CBRE MANAGED SERVICES LTD,451653,17085.16,853936883
BEIS,Met Office,2021-02-23,06 ACCOMMODATION,CHIEF FINANCIAL OFFICER,CBRE MANAGED SERVICES LTD,452673,4008.39,853936883
BEIS,Met Office,2021-02-23,06 ACCOMMODATION,CHIEF FINANCIAL OFFICER,CBRE MANAGED SERVICES LTD,452674,26492.74,853936883
BEIS,Met Office,2021-02-23,06 ACCOMMODATION,CHIEF FINANCIAL OFFICER,CBRE MANAGED SERVICES LTD,452703,141920.1,853936883
BEIS,Met Office,2021-02-23,06 ACCOMMODATION,CHIEF FINANCIAL OFFICER,CBRE MANAGED SERVICES LTD,452705,31786.96,853936883
BEIS,Met Office,2021-02-23,06 ACCOMMODATION,CHIEF FINANCIAL OFFICER,CBRE MANAGED SERVICES LTD,452706,33492.76,853936883
BEIS,Met Office,2021-02-18,06 ACCOMMODATION,CHIEF FINANCIAL OFFICER,CELLNEX,452397,-230.88,GB 843 8792 82
BEIS,Met Office,2021-02-18,06 ACCOMMODATION,CHIEF FINANCIAL OFFICER,CELLNEX,452398,648.22,GB 843 8792 82
BEIS,Met Office,2021-02-25,08 SOFTWARE LICENCES,CHIEF FINANCIAL OFFICER,CEMAR,452806,90,915042161
BEIS,Met Office,2021-02-25,08 SOFTWARE LICENCES,CHIEF FINANCIAL OFFICER,CEMAR,452810,450,915042161
BEIS,Met Office,2021-02-09,11 SERVICES,SCIENCE,"CENTRE FOR THE ENVIRONMENT, FISHERIES AND",451989,2052.7,888 8001 81
BEIS,Met Office,2021-02-09,11 SERVICES,MARKETS,Cgi It Uk Limited,451907,37026.71,232615194
BEIS,Met Office,2021-02-04,11 SERVICES,MARKETS,Cgi It Uk Limited,451908,6974.08,232615194
BEIS,Met Office,2021-02-09,11 SERVICES,MARKETS,Cgi It Uk Limited,451909,2395.22,232615194
BEIS,Met Office,2021-02-11,11 SERVICES,MARKETS,Cgi It Uk Limited,452135,186682.7,232615194
BEIS,Met Office,2021-02-09,03 STAFF COSTS T&S,SERVICES,CHARLIE'S TRAVEL LTD,452027,851.75,783848277
BEIS,Met Office,2021-02-09,03 STAFF COSTS T&S,SERVICES,CHARLIE'S TRAVEL LTD,452027,494,783848277
BEIS,Met Office,2021-02-09,03 STAFF COSTS T&S,SERVICES,CHARLIE'S TRAVEL LTD,452027,201.25,783848277
BEIS,Met Office,2021-02-09,03 STAFF COSTS T&S,SERVICES,CHARLIE'S TRAVEL LTD,452027,118,783848277
BEIS,Met Office,2021-02-16,STOCK,SERVICES,CHARNWOOD FASTENERS LIMITED,452321,0,355315757
BEIS,Met Office,2021-02-16,STOCK,SERVICES,CHARNWOOD FASTENERS LIMITED,452321,0,355315757
BEIS,Met Office,2021-02-16,TRADE CREDITORS,SERVICES,CHARNWOOD FASTENERS LIMITED,452321,2425,355315757
BEIS,Met Office,2021-02-16,TRADE CREDITORS,SERVICES,CHARNWOOD FASTENERS LIMITED,452321,1100,355315757
BEIS,Met Office,2021-02-16,11 SERVICES,SERVICES,CHARNWOOD FASTENERS LIMITED,452321,50,355315757
BEIS,Met Office,2021-02-25,11 SERVICES,PEOPLE,CIPHR,452833,15900,242661124
BEIS,Met Office,2021-02-16,08 SOFTWARE LICENCES,TECHNOLOGY AND CIO,CLEARVISION (CM) LIMITED,452320,12882.48,881364801
BEIS,Met Office,2021-02-23,13 MISCELLANEOUS,SERVICES,CLIMATOLOGICAL OBSERVERS LINK (COL),452128,39,NOTVATREG
BEIS,Met Office,2021-02-09,11 SERVICES,TECHNOLOGY AND CIO,CLOUDREACH EUROPE LIMITED,452091,7110,978187168
BEIS,Met Office,2021-02-16,11 SERVICES,SERVICES,CLOUDREACH EUROPE LIMITED,452319,7300,978187168
BEIS,Met Office,2021-02-16,11 SERVICES,TECHNOLOGY AND CIO,CLOUDREACH EUROPE LIMITED,452368,4000,978187168
BEIS,Met Office,2021-02-18,11 SERVICES,TECHNOLOGY AND CIO,CLOUDREACH EUROPE LIMITED,452370,3867.92,978187168
BEIS,Met Office,2021-02-18,11 SERVICES,TECHNOLOGY AND CIO,CLOUDREACH EUROPE LIMITED,452370,2995.18,978187168
BEIS,Met Office,2021-02-18,11 SERVICES,TECHNOLOGY AND CIO,CLOUDREACH EUROPE LIMITED,452425,2287.8,978187168
BEIS,Met Office,2021-02-09,05 CONSULTANTS,PROGRAMMES,CMC PARTNERSHIP CONSULTANCY LTD,452025,8395,305803330
BEIS,Met Office,2021-02-09,05 CONSULTANTS,PROGRAMMES,CMC PARTNERSHIP CONSULTANCY LTD,452136,18900,305803330
BEIS,Met Office,2021-02-03,11 SERVICES,SERVICES,COLLECTE LOCALISATION SATELLITES (C.L.S.),22234,6780.78,FR95338034390
BEIS,Met Office,2021-02-03,11 SERVICES,SERVICES,COLLECTE LOCALISATION SATELLITES (C.L.S.),22235,131.74,FR95338034390
BEIS,Met Office,2021-02-03,11 SERVICES,SERVICES,COLLECTE LOCALISATION SATELLITES (C.L.S.),22236,9203.27,FR95338034390
BEIS,Met Office,2021-02-09,11 SERVICES,SERVICES,COMMISIONERS OF IRISH LIGHT,22290,5869.71,0509659V
BEIS,Met Office,2021-02-02,08 SOFTWARE LICENCES,TECHNOLOGY AND CIO,COMPUTACENTER (UK) LTD,450598,614.35,490334648
BEIS,Met Office,2021-02-02,08 SOFTWARE LICENCES,TECHNOLOGY AND CIO,COMPUTACENTER (UK) LTD,450598,37302.02,490334648
BEIS,Met Office,2021-02-02,08 SOFTWARE LICENCES,TECHNOLOGY AND CIO,COMPUTACENTER (UK) LTD,450598,5775.64,490334648
BEIS,Met Office,2021-02-02,08 SOFTWARE LICENCES,TECHNOLOGY AND CIO,COMPUTACENTER (UK) LTD,451549,-441.02,490334648
BEIS,Met Office,2021-02-02,INFORMATION TECHNOLOGY,TECHNOLOGY AND CIO,COMPUTACENTER (UK) LTD,451759,185749.2,490334648
BEIS,Met Office,2021-02-02,10 EQUIPMENT MAINTENANCE,TECHNOLOGY AND CIO,COMPUTACENTER (UK) LTD,451795,23274,490334648
BEIS,Met Office,2021-02-16,10 EQUIPMENT MAINTENANCE,TECHNOLOGY AND CIO,COMPUTACENTER (UK) LTD,452288,43340.49,490334648
BEIS,Met Office,2021-02-16,10 EQUIPMENT MAINTENANCE,TECHNOLOGY AND CIO,COMPUTACENTER (UK) LTD,452289,3202.07,490334648
BEIS,Met Office,2021-02-23,INFORMATION TECHNOLOGY,TECHNOLOGY AND CIO,COMPUTACENTER (UK) LTD,452615,17635.2,490334648
BEIS,Met Office,2021-02-03,11 SERVICES,MARKETS,CONSULTEC,22265,14652.08,400005915
BEIS,Met Office,2021-02-11,06 ACCOMMODATION,CHIEF FINANCIAL OFFICER,CORONA ENERGY LTD,451949,557.65,577704800
BEIS,Met Office,2021-02-02,06 ACCOMMODATION,CHIEF FINANCIAL OFFICER,CORPORATE MOVES C/O SPACE SOLUTIONS,451666,9979.91,907839882
BEIS,Met Office,2021-02-04,06 ACCOMMODATION,CHIEF FINANCIAL OFFICER,COUNTRYWIDE GROUNDS MAINTENANCE LTD,451887,3700,611731279
BEIS,Met Office,2021-02-04,06 ACCOMMODATION,CHIEF FINANCIAL OFFICER,COUNTRYWIDE GROUNDS MAINTENANCE LTD,451887,1000,611731279
BEIS,Met Office,2021-02-09,CYCLESCHEME,OTHER,CYCLESCHEME LTD,452007,399.98,850403556
BEIS,Met Office,2021-02-09,13 MISCELLANEOUS,OTHER,CYCLESCHEME LTD,452008,573.33,850403556
BEIS,Met Office,2021-02-16,06 ACCOMMODATION,CHIEF FINANCIAL OFFICER,D&G OFFICE SERVICES LTD,452286,276.25,272997547
BEIS,Met Office,2021-02-02,08 SOFTWARE LICENCES,TECHNOLOGY AND CIO,DAISY COMMUNICATIONS,451829,27730,722 4713 55
BEIS,Met Office,2021-02-23,11 SERVICES,MARKETS,DBS FINANCE RECEIPTS CTS,452644,13628.44,888805068
BEIS,Met Office,2021-02-03,13 MISCELLANEOUS,CHIEF FINANCIAL OFFICER,DEMSTAR BUSINESS SOLUTIONS LTD,22266,83.06,10156145J
BEIS,Met Office,2021-02-16,11 SERVICES,SERVICES,DHL GLOBAL FORWARDING (UK) LTD,451539,1614.43,745260438
BEIS,Met Office,2021-02-09,11 SERVICES,CHIEF FINANCIAL OFFICER,DIGITAL COMMUNICATIONS SYSTEMS LIMITED,452031,4208.89,GB 556 1971 19
BEIS,Met Office,2021-02-09,11 SERVICES,MARKETS,DJS RESEARCH LIMITED,452026,9894,775718779
BEIS,Met Office,2021-02-18,11 SERVICES,MARKETS,DJS RESEARCH LIMITED,452424,9894,775718779
BEIS,Met Office,2021-02-18,11 SERVICES,SERVICES,DRIVE CREATIVE STUDIO LTD,452285,1890,167656860
BEIS,Met Office,2021-02-09,13 MISCELLANEOUS,CHIEF FINANCIAL OFFICER,EAST ANGLIAN WATER COOLER CO,451904,22,676668178
BEIS,Met Office,2021-02-11,06 ACCOMMODATION,CHIEF FINANCIAL OFFICER,EDF ENERGY CUSTOMERS PLC,452010,110253.24,523041202
BEIS,Met Office,2021-02-11,06 ACCOMMODATION,CHIEF FINANCIAL OFFICER,EDF ENERGY CUSTOMERS PLC,452011,398288.34,523041202
BEIS,Met Office,2021-02-11,06 ACCOMMODATION,CHIEF FINANCIAL OFFICER,EDF ENERGY CUSTOMERS PLC,452012,103047.41,523041202
BEIS,Met Office,2021-02-11,06 ACCOMMODATION,CHIEF FINANCIAL OFFICER,EDF ENERGY CUSTOMERS PLC,452013,99851.36,523041202
BEIS,Met Office,2021-02-11,06 ACCOMMODATION,CHIEF FINANCIAL OFFICER,EDF ENERGY CUSTOMERS PLC,452014,112832.72,523041202
BEIS,Met Office,2021-02-11,06 ACCOMMODATION,CHIEF FINANCIAL OFFICER,EDF ENERGY CUSTOMERS PLC,452015,-99881.12,523041202
BEIS,Met Office,2021-02-11,06 ACCOMMODATION,CHIEF FINANCIAL OFFICER,EDF ENERGY CUSTOMERS PLC,452016,-112851.75,523041202
BEIS,Met Office,2021-02-09,06 ACCOMMODATION,CHIEF FINANCIAL OFFICER,EDF ENERGY CUSTOMERS PLC,452142,92000.21,523041202
BEIS,Met Office,2021-02-09,06 ACCOMMODATION,CHIEF FINANCIAL OFFICER,EDF ENERGY CUSTOMERS PLC,452143,104046.04,523041202
BEIS,Met Office,2021-02-11,06 ACCOMMODATION,CHIEF FINANCIAL OFFICER,EDF ENERGY CUSTOMERS PLC,452146,92000.21,523041202
BEIS,Met Office,2021-02-16,06 ACCOMMODATION,MARKETS,EGREMONT RANGERS ARLFC,452388,250,-
BEIS,Met Office,2021-02-16,06 ACCOMMODATION,MARKETS,EGREMONT RANGERS ARLFC,452388,35,-
BEIS,Met Office,2021-02-09,11 SERVICES,CHIEF FINANCIAL OFFICER,EIR,22279,54.13,4736919B
BEIS,Met Office,2021-02-09,11 SERVICES,TECHNOLOGY AND CIO,ELASTICSEARCH LTD,450628,10471.37,155790484
BEIS,Met Office,2021-02-09,11 SERVICES,TECHNOLOGY AND CIO,ELASTICSEARCH LTD,452098,12818.43,155790484
BEIS,Met Office,2021-02-02,03 STAFF COSTS T&S,CHIEF FINANCIAL OFFICER,ENTERPRISE RENT A CAR UK LTD,451689,239.78,215557314
BEIS,Met Office,2021-02-09,03 STAFF COSTS T&S,CHIEF FINANCIAL OFFICER,ENTERPRISE RENT A CAR UK LTD,452117,423.64,215557314
BEIS,Met Office,2021-02-09,03 STAFF COSTS T&S,CHIEF FINANCIAL OFFICER,ENTERPRISE RENT A CAR UK LTD,452118,187.14,215557314
BEIS,Met Office,2021-02-11,03 STAFF COSTS T&S,CHIEF FINANCIAL OFFICER,ENTERPRISE RENT A CAR UK LTD,452233,105.11,215557314
BEIS,Met Office,2021-02-25,03 STAFF COSTS T&S,CHIEF FINANCIAL OFFICER,ENTERPRISE RENT A CAR UK LTD,452791,673.42,215557314
BEIS,Met Office,2021-02-25,03 STAFF COSTS T&S,CHIEF FINANCIAL OFFICER,ENTERPRISE RENT A CAR UK LTD,452794,270.68,215557314
BEIS,Met Office,2021-02-25,03 STAFF COSTS T&S,CHIEF FINANCIAL OFFICER,ENTERPRISE RENT A CAR UK LTD,452795,285.2,215557314
BEIS,Met Office,2021-02-09,11 SERVICES,PEOPLE,EQUINITI ICS LTD,452003,6846,915967778
BEIS,Met Office,2021-02-09,11 SERVICES,PEOPLE,EQUINITI ICS LTD,452004,316.66,915967778
BEIS,Met Office,2021-02-09,11 SERVICES,PROGRAMMES,Esri (Uk) Ltd,451905,7586,787430791
BEIS,Met Office,2021-02-09,11 SERVICES,PROGRAMMES,Esri (Uk) Ltd,451906,6406.83,787430791
BEIS,Met Office,2021-02-02,FIXTURE & FITTINGS,CHIEF FINANCIAL OFFICER,EX2 ELECTRICAL (SOUTH WEST) LTD,451663,15242.53,GB 113 0023 94
BEIS,Met Office,2021-02-16,11 SERVICES,CHIEF FINANCIAL OFFICER,EXPONENTIAL-E,452284,1724.2,GB798572653
BEIS,Met Office,2021-02-18,03 STAFF COSTS T&S,SERVICES,FALKLAND ISLAND COMPANY LTD,452396,12.25,N/A
BEIS,Met Office,2021-02-02,11 SERVICES,MARKETS,FCDO,451417,26.12,888813560
BEIS,Met Office,2021-02-04,11 SERVICES,MARKETS,FCDO,451821,3105.52,888813560
BEIS,Met Office,2021-02-09,11 SERVICES,MARKETS,FCDO,451944,1077.91,888813560
BEIS,Met Office,2021-02-18,11 SERVICES,MARKETS,FCDO,452431,25.34,888813560
BEIS,Met Office,2021-02-02,11 SERVICES,TECHNOLOGY AND CIO,FCDO SERVICES,451667,17335.68,888848729
BEIS,Met Office,2021-02-09,04 CONTRACTORS,TECHNOLOGY AND CIO,FDM GROUP LIMITED,451983,3000,583540529
BEIS,Met Office,2021-02-09,04 CONTRACTORS,TECHNOLOGY AND CIO,FDM GROUP LIMITED,451984,5400,583540529
BEIS,Met Office,2021-02-09,04 CONTRACTORS,TECHNOLOGY AND CIO,FDM GROUP LIMITED,452000,5400,583540529
BEIS,Met Office,2021-02-09,04 CONTRACTORS,TECHNOLOGY AND CIO,FDM GROUP LIMITED,452033,5400,583540529
BEIS,Met Office,2021-02-09,04 CONTRACTORS,TECHNOLOGY AND CIO,FDM GROUP LIMITED,452034,5400,583540529
BEIS,Met Office,2021-02-09,04 CONTRACTORS,TECHNOLOGY AND CIO,FDM GROUP LIMITED,452035,5400,583540529
BEIS,Met Office,2021-02-23,04 CONTRACTORS,TECHNOLOGY AND CIO,FDM GROUP LIMITED,452521,4500,583540529
BEIS,Met Office,2021-02-03,10 EQUIPMENT MAINTENANCE,SERVICES,Finnish Meteorological Institute,22231,2577.82,FI02446647
BEIS,Met Office,2021-02-11,11 SERVICES,TECHNOLOGY AND CIO,FLYFORM LTD,452018,15920,237333808
BEIS,Met Office,2021-02-11,11 SERVICES,TECHNOLOGY AND CIO,FLYFORM LTD,452018,19900,237333808
BEIS,Met Office,2021-02-11,11 SERVICES,TECHNOLOGY AND CIO,FLYFORM LTD,452018,3980,237333808
BEIS,Met Office,2021-02-11,11 SERVICES,SERVICES,FLYFORM LTD,452065,9950,237333808
BEIS,Met Office,2021-02-11,11 SERVICES,SERVICES,FLYFORM LTD,452065,9950,237333808
BEIS,Met Office,2021-02-11,11 SERVICES,SERVICES,FLYFORM LTD,452065,1000,237333808
BEIS,Met Office,2021-02-11,11 SERVICES,TECHNOLOGY AND CIO,FLYFORM LTD,452099,4975,237333808
BEIS,Met Office,2021-02-11,11 SERVICES,TECHNOLOGY AND CIO,FLYFORM LTD,452100,995,237333808
BEIS,Met Office,2021-02-11,06 ACCOMMODATION,CHIEF FINANCIAL OFFICER,FOX GROUNDS MAINTENANCE & LANDSCAPING LTD,452137,305.66,129495383
BEIS,Met Office,2021-02-18,11 SERVICES,CHIEF FINANCIAL OFFICER,FSI (FM SOLUTIONS) LTD,452532,1000,166398173
BEIS,Met Office,2021-02-16,11 SERVICES,CHIEF FINANCIAL OFFICER,GAMMA BUSINESS COMMUNICATIONS LTD,452282,413.1,823820344
BEIS,Met Office,2021-02-16,11 SERVICES,CHIEF FINANCIAL OFFICER,GAMMA TELECOM LTD,452391,273.53,823820344
BEIS,Met Office,2021-02-16,11 SERVICES,CHIEF FINANCIAL OFFICER,GAMMA TELECOM LTD,452391,27272.86,823820344
BEIS,Met Office,2021-02-11,11 SERVICES,CHIEF FINANCIAL OFFICER,GB GROUP PLC,452045,527.28,539716218
BEIS,Met Office,2021-02-16,04 CONTRACTORS,TECHNOLOGY AND CIO,GCS IT RECRUITMENT SPECIALISTS LTD,452280,15000,896156575
BEIS,Met Office,2021-02-16,04 CONTRACTORS,TECHNOLOGY AND CIO,GCS IT RECRUITMENT SPECIALISTS LTD,452281,9100,896156575
BEIS,Met Office,2021-02-04,11 SERVICES,MARKETS,GEOSMART INFORMATION LTD,451896,5833,172271519
BEIS,Met Office,2021-02-16,11 SERVICES,CHIEF FINANCIAL OFFICER,GIBRALTAR NYNEX COMMUNICATIONS LTD,452271,702,NOVAT
BEIS,Met Office,2021-02-09,08 SOFTWARE LICENCES,TECHNOLOGY AND CIO,GOOGLE IRELAND LTD,452066,34.53,6388047V
BEIS,Met Office,2021-02-23,06 ACCOMMODATION,CHIEF FINANCIAL OFFICER,GOVERNMENT PROPERTY AGENCY,452621,0.55,-
BEIS,Met Office,2021-02-23,06 ACCOMMODATION,CHIEF FINANCIAL OFFICER,GREAT WESTERN AIR AMBULANCE CHARITY,452549,50,-
BEIS,Met Office,2021-02-23,11 SERVICES,PEOPLE,HAWK INCENTIVES LTD,451434,11313.75,238839422
BEIS,Met Office,2021-02-23,11 SERVICES,PEOPLE,HAWK INCENTIVES LTD,451751,5045.25,238839422
BEIS,Met Office,2021-02-23,11 SERVICES,PEOPLE,HAWK INCENTIVES LTD,452020,2388.75,238839422
BEIS,Met Office,2021-02-23,11 SERVICES,PEOPLE,HAWK INCENTIVES LTD,452270,4042.5,238839422
BEIS,Met Office,2021-02-02,04 CONTRACTORS,PEOPLE,HAYS SPECIALIST RECRUITMENT LTD,451761,488.2,773695871
BEIS,Met Office,2021-02-02,04 CONTRACTORS,PEOPLE,HAYS SPECIALIST RECRUITMENT LTD,451762,488.2,773695871
BEIS,Met Office,2021-02-04,04 CONTRACTORS,TECHNOLOGY AND CIO,HAYS SPECIALIST RECRUITMENT LTD,451816,558.7,773695871
BEIS,Met Office,2021-02-04,04 CONTRACTORS,PEOPLE,HAYS SPECIALIST RECRUITMENT LTD,451817,500.42,773695871
BEIS,Met Office,2021-02-04,04 CONTRACTORS,PEOPLE,HAYS SPECIALIST RECRUITMENT LTD,451818,817.75,773695871
BEIS,Met Office,2021-02-04,04 CONTRACTORS,PEOPLE,HAYS SPECIALIST RECRUITMENT LTD,451819,658.25,773695871
BEIS,Met Office,2021-02-04,04 CONTRACTORS,TECHNOLOGY AND CIO,HAYS SPECIALIST RECRUITMENT LTD,451820,573.8,773695871
BEIS,Met Office,2021-02-09,04 CONTRACTORS,TECHNOLOGY AND CIO,HAYS SPECIALIST RECRUITMENT LTD,451991,581.35,773695871
BEIS,Met Office,2021-02-09,04 CONTRACTORS,PEOPLE,HAYS SPECIALIST RECRUITMENT LTD,451992,488.21,773695871
BEIS,Met Office,2021-02-09,04 CONTRACTORS,PEOPLE,HAYS SPECIALIST RECRUITMENT LTD,451993,658.25,773695871
BEIS,Met Office,2021-02-09,04 CONTRACTORS,TECHNOLOGY AND CIO,HAYS SPECIALIST RECRUITMENT LTD,451994,558.71,773695871
BEIS,Met Office,2021-02-09,04 CONTRACTORS,PEOPLE,HAYS SPECIALIST RECRUITMENT LTD,451995,817.75,773695871
BEIS,Met Office,2021-02-09,04 CONTRACTORS,PEOPLE,HAYS SPECIALIST RECRUITMENT LTD,451996,488.2,773695871
BEIS,Met Office,2021-02-16,04 CONTRACTORS,PEOPLE,HAYS SPECIALIST RECRUITMENT LTD,452264,658.25,773695871
BEIS,Met Office,2021-02-16,04 CONTRACTORS,PEOPLE,HAYS SPECIALIST RECRUITMENT LTD,452265,817.75,773695871
BEIS,Met Office,2021-02-16,04 CONTRACTORS,PEOPLE,HAYS SPECIALIST RECRUITMENT LTD,452266,488.2,773695871
BEIS,Met Office,2021-02-16,04 CONTRACTORS,TECHNOLOGY AND CIO,HAYS SPECIALIST RECRUITMENT LTD,452267,558.71,773695871
BEIS,Met Office,2021-02-16,04 CONTRACTORS,PEOPLE,HAYS SPECIALIST RECRUITMENT LTD,452268,488.2,773695871
BEIS,Met Office,2021-02-16,04 CONTRACTORS,TECHNOLOGY AND CIO,HAYS SPECIALIST RECRUITMENT LTD,452269,566.25,773695871
BEIS,Met Office,2021-02-23,04 CONTRACTORS,TECHNOLOGY AND CIO,HAYS SPECIALIST RECRUITMENT LTD,452612,558.7,773695871
BEIS,Met Office,2021-02-23,04 CONTRACTORS,TECHNOLOGY AND CIO,HAYS SPECIALIST RECRUITMENT LTD,452613,445.45,773695871
BEIS,Met Office,2021-02-23,04 CONTRACTORS,PEOPLE,HAYS SPECIALIST RECRUITMENT LTD,452614,488.2,773695871
BEIS,Met Office,2021-02-23,04 CONTRACTORS,PEOPLE,HAYS SPECIALIST RECRUITMENT LTD,452619,658.25,773695871
BEIS,Met Office,2021-02-23,04 CONTRACTORS,MARKETS,HAYS SPECIALIST RECRUITMENT LTD,452694,183.08,773695871
BEIS,Met Office,2021-02-23,04 CONTRACTORS,MARKETS,HAYS SPECIALIST RECRUITMENT LTD,452695,183.08,773695871
BEIS,Met Office,2021-02-23,04 CONTRACTORS,MARKETS,HAYS SPECIALIST RECRUITMENT LTD,452696,183.08,773695871
BEIS,Met Office,2021-02-23,04 CONTRACTORS,PEOPLE,HAYS SPECIALIST RECRUITMENT LTD,452697,488.2,773695871
BEIS,Met Office,2021-02-23,04 CONTRACTORS,MARKETS,HAYS SPECIALIST RECRUITMENT LTD,452698,183.08,773695871
BEIS,Met Office,2021-02-23,04 CONTRACTORS,PEOPLE,HAYS SPECIALIST RECRUITMENT LTD,452704,488.2,773695871
BEIS,Met Office,2021-02-25,04 CONTRACTORS,PEOPLE,HAYS SPECIALIST RECRUITMENT LTD,452785,695.7,773695871
BEIS,Met Office,2021-02-25,04 CONTRACTORS,MARKETS,HAYS SPECIALIST RECRUITMENT LTD,452786,366.16,773695871
BEIS,Met Office,2021-02-02,13 MISCELLANEOUS,PEOPLE,HEALTH MANAGEMENT LTD,451750,2848.13,792250621
BEIS,Met Office,2021-02-23,10 EQUIPMENT MAINTENANCE,TECHNOLOGY AND CIO,Hewlett Packard Ltd,452625,2599.29,314149679
BEIS,Met Office,2021-02-23,10 EQUIPMENT MAINTENANCE,TECHNOLOGY AND CIO,Hewlett Packard Ltd,452626,1882.8,314149679
BEIS,Met Office,2021-02-25,10 EQUIPMENT MAINTENANCE,TECHNOLOGY AND CIO,Hewlett Packard Ltd,452725,1599.6,314149679
BEIS,Met Office,2021-02-18,11 SERVICES,PROGRAMMES,HOGAN LOVELLS INTERNATIONAL LLP,452437,208679.5,GB123371543
BEIS,Met Office,2021-02-18,11 SERVICES,PROGRAMMES,HOGAN LOVELLS INTERNATIONAL LLP,452438,10595.37,GB123371543
BEIS,Met Office,2021-02-18,11 SERVICES,PROGRAMMES,HOGAN LOVELLS INTERNATIONAL LLP,452439,9036.51,GB123371543
BEIS,Met Office,2021-02-18,11 SERVICES,PROGRAMMES,HOGAN LOVELLS INTERNATIONAL LLP,452440,3318,GB123371543
BEIS,Met Office,2021-02-17,08 SOFTWARE LICENCES,MARKETS,"IBL SOFTWARE ENGINEERING, SPOL S.R.O.",22241,504592.7,SK2020241883
BEIS,Met Office,2021-02-03,08 SOFTWARE LICENCES,MARKETS,"IBL SOFTWARE ENGINEERING, SPOL S.R.O.",22259,34376.44,SK2020241883
BEIS,Met Office,2021-02-03,08 SOFTWARE LICENCES,MARKETS,"IBL SOFTWARE ENGINEERING, SPOL S.R.O.",22259,22755.12,SK2020241883
BEIS,Met Office,2021-02-03,08 SOFTWARE LICENCES,MARKETS,"IBL SOFTWARE ENGINEERING, SPOL S.R.O.",22259,183035.56,SK2020241883
BEIS,Met Office,2021-02-03,08 SOFTWARE LICENCES,MARKETS,"IBL SOFTWARE ENGINEERING, SPOL S.R.O.",22260,4253.54,SK2020241883
BEIS,Met Office,2021-02-03,08 SOFTWARE LICENCES,MARKETS,"IBL SOFTWARE ENGINEERING, SPOL S.R.O.",22261,22755.12,SK2020241883
BEIS,Met Office,2021-02-09,11 SERVICES,MARKETS,"IBL SOFTWARE ENGINEERING, SPOL S.R.O.",449461,2059.13,SK2020241883
BEIS,Met Office,2021-02-09,11 SERVICES,PROGRAMMES,"IBL SOFTWARE ENGINEERING, SPOL S.R.O.",451267,8242.88,SK2020241883
BEIS,Met Office,2021-02-02,11 SERVICES,MARKETS,IBM UNITED KINGDOM LTD,451459,6184.16,107328000
BEIS,Met Office,2021-02-04,08 SOFTWARE LICENCES,TECHNOLOGY AND CIO,IBM UNITED KINGDOM LTD,451895,9309,107328000
BEIS,Met Office,2021-02-09,08 SOFTWARE LICENCES,TECHNOLOGY AND CIO,IBM UNITED KINGDOM LTD,452001,12225.7,107328000
BEIS,Met Office,2021-02-18,11 SERVICES,TECHNOLOGY AND CIO,IBM UNITED KINGDOM LTD,452546,6184.16,107328000
BEIS,Met Office,2021-02-09,11 SERVICES,MARKETS,ICIMOD,10102,66076.57,-
BEIS,Met Office,2021-02-02,12 INTERNATIONAL,MARKETS,IDEMS INTERNATIONAL COMMUNITY INTEREST CO,451797,30000,-
BEIS,Met Office,2021-02-25,13 MISCELLANEOUS,SCIENCE,IMPERIAL COLLEGE,452804,333,649926678
BEIS,Met Office,2021-02-11,06 ACCOMMODATION,SERVICES,INMARSAT SOLUTIONS (CANADA) INC,452110,1769.28,766144223
BEIS,Met Office,2021-02-02,11 SERVICES,TECHNOLOGY AND CIO,INNOSIS LIMITED,451793,3685,-
BEIS,Met Office,2021-02-24,11 SERVICES,MARKETS,"INTELLOVATIONS, LLC",10036,2135.89,-
BEIS,Met Office,2021-02-09,11 SERVICES,MARKETS,"INTELLOVATIONS, LLC",10075,2147.28,-
BEIS,Met Office,2021-02-09,11 SERVICES,MARKETS,"INTELLOVATIONS, LLC",10101,2077.97,-
BEIS,Met Office,2021-02-09,11 SERVICES,MARKETS,INTERNET ADVERTISING BUREAU (IAB UK),452092,5803,735 4500 47
BEIS,Met Office,2021-02-23,11 SERVICES,CHIEF FINANCIAL OFFICER,INTEROUTE COMMUNICATIONS LIMITED,452620,4931.94,832 7071 39
BEIS,Met Office,2021-02-17,06 ACCOMMODATION,CHIEF FINANCIAL OFFICER,JAMES & MARCIA BENJAMIN,451879,520,-
BEIS,Met Office,2021-02-23,11 SERVICES,CHIEF FINANCIAL OFFICER,JERSEY TELECOM,452592,1222.49,NOTVATREG
BEIS,Met Office,2021-02-02,04 CONTRACTORS,OFFICE OF THE CEO,JOBSEEKERS RECRUITMENT SERVICES LTD,451753,662.3,130 1297 14
BEIS,Met Office,2021-02-02,04 CONTRACTORS,MARKETS,JOBSEEKERS RECRUITMENT SERVICES LTD,451754,662.3,130 1297 14
BEIS,Met Office,2021-02-02,04 CONTRACTORS,MARKETS,JOBSEEKERS RECRUITMENT SERVICES LTD,451756,662.3,130 1297 14
BEIS,Met Office,2021-02-09,04 CONTRACTORS,OFFICE OF THE CEO,JOBSEEKERS RECRUITMENT SERVICES LTD,452029,662.3,130 1297 14
BEIS,Met Office,2021-02-09,04 CONTRACTORS,MARKETS,JOBSEEKERS RECRUITMENT SERVICES LTD,452030,662.3,130 1297 14
BEIS,Met Office,2021-02-09,04 CONTRACTORS,MARKETS,JOBSEEKERS RECRUITMENT SERVICES LTD,452120,662.3,130 1297 14
BEIS,Met Office,2021-02-16,04 CONTRACTORS,OFFICE OF THE CEO,JOBSEEKERS RECRUITMENT SERVICES LTD,452432,662.3,130 1297 14
BEIS,Met Office,2021-02-16,04 CONTRACTORS,MARKETS,JOBSEEKERS RECRUITMENT SERVICES LTD,452433,662.3,130 1297 14
BEIS,Met Office,2021-02-16,04 CONTRACTORS,CHIEF FINANCIAL OFFICER,JOBSEEKERS RECRUITMENT SERVICES LTD,452434,627.9,130 1297 14
BEIS,Met Office,2021-02-16,04 CONTRACTORS,CHIEF FINANCIAL OFFICER,JOBSEEKERS RECRUITMENT SERVICES LTD,452435,390.2,130 1297 14
BEIS,Met Office,2021-02-16,04 CONTRACTORS,MARKETS,JOBSEEKERS RECRUITMENT SERVICES LTD,452436,662.3,130 1297 14
BEIS,Met Office,2021-02-23,04 CONTRACTORS,MARKETS,JOBSEEKERS RECRUITMENT SERVICES LTD,452601,662.3,130 1297 14
BEIS,Met Office,2021-02-23,04 CONTRACTORS,CHIEF FINANCIAL OFFICER,JOBSEEKERS RECRUITMENT SERVICES LTD,452602,390.2,130 1297 14
BEIS,Met Office,2021-02-23,04 CONTRACTORS,OFFICE OF THE CEO,JOBSEEKERS RECRUITMENT SERVICES LTD,452603,662.3,130 1297 14
BEIS,Met Office,2021-02-23,04 CONTRACTORS,CHIEF FINANCIAL OFFICER,JOBSEEKERS RECRUITMENT SERVICES LTD,452604,618.93,130 1297 14
BEIS,Met Office,2021-02-23,04 CONTRACTORS,MARKETS,JOBSEEKERS RECRUITMENT SERVICES LTD,452606,662.3,130 1297 14
BEIS,Met Office,2021-02-17,10 EQUIPMENT MAINTENANCE,SERVICES,Kongsberg Spacetec As,449343,41249,-
BEIS,Met Office,2021-02-23,11 SERVICES,SERVICES,Landmark Information Group Ltd,452551,11470.71,634509735
BEIS,Met Office,2021-02-23,11 SERVICES,SERVICES,Landmark Information Group Ltd,452552,13734.29,634509735
BEIS,Met Office,2021-02-23,11 SERVICES,SERVICES,Landmark Information Group Ltd,452553,74829.28,634509735
BEIS,Met Office,2021-02-23,11 SERVICES,SERVICES,Landmark Information Group Ltd,452554,62517.38,634509735
BEIS,Met Office,2021-02-04,11 SERVICES,SCIENCE,LAUGHING PHOENIX LTD,451070,2400,989 4469 37
BEIS,Met Office,2021-02-23,11 SERVICES,PEOPLE,LEARNING & PERFORMANCE INSTITUTE,452627,11950,GB241358618
BEIS,Met Office,2021-02-25,03 STAFF COSTS T&S,CHIEF FINANCIAL OFFICER,LEASEDRIVE RENTAL MANAGEMENT LTD,452796,114.98,733546040
BEIS,Met Office,2021-02-25,03 STAFF COSTS T&S,CHIEF FINANCIAL OFFICER,LEASEDRIVE RENTAL MANAGEMENT LTD,452797,193.53,733546040
BEIS,Met Office,2021-02-25,03 STAFF COSTS T&S,CHIEF FINANCIAL OFFICER,LEASEDRIVE RENTAL MANAGEMENT LTD,452798,93.73,733546040
BEIS,Met Office,2021-02-02,07 EQUIPMENT,SERVICES,LEMO (UK) LTD,451758,197.25,193269240
BEIS,Met Office,2021-02-02,07 EQUIPMENT,SERVICES,LEMO (UK) LTD,451758,346.32,193269240
BEIS,Met Office,2021-02-02,07 EQUIPMENT,SERVICES,LEMO (UK) LTD,451758,270.88,193269240
BEIS,Met Office,2021-02-02,07 EQUIPMENT,SERVICES,LEMO (UK) LTD,451758,322.92,193269240
BEIS,Met Office,2021-02-02,07 EQUIPMENT,SERVICES,LEMO (UK) LTD,451758,312.6,193269240
BEIS,Met Office,2021-02-02,07 EQUIPMENT,SERVICES,LEMO (UK) LTD,451758,255.48,193269240
BEIS,Met Office,2021-02-02,07 EQUIPMENT,SERVICES,LEMO (UK) LTD,451758,255.48,193269240
BEIS,Met Office,2021-02-02,07 EQUIPMENT,SERVICES,LEMO (UK) LTD,451758,127.74,193269240
BEIS,Met Office,2021-02-02,07 EQUIPMENT,SERVICES,LEMO (UK) LTD,451758,510.96,193269240
BEIS,Met Office,2021-02-02,07 EQUIPMENT,SERVICES,LEMO (UK) LTD,451758,2152.5,193269240
BEIS,Met Office,2021-02-02,07 EQUIPMENT,SERVICES,LEMO (UK) LTD,451758,420.08,193269240
BEIS,Met Office,2021-02-02,07 EQUIPMENT,SERVICES,LEMO (UK) LTD,451758,840.16,193269240
BEIS,Met Office,2021-02-02,07 EQUIPMENT,SERVICES,LEMO (UK) LTD,451758,339.88,193269240
BEIS,Met Office,2021-02-02,07 EQUIPMENT,SERVICES,LEMO (UK) LTD,451758,308.8,193269240
BEIS,Met Office,2021-02-02,07 EQUIPMENT,SERVICES,LEMO (UK) LTD,451758,202.56,193269240
BEIS,Met Office,2021-02-02,07 EQUIPMENT,SERVICES,LEMO (UK) LTD,451758,271.16,193269240
BEIS,Met Office,2021-02-02,07 EQUIPMENT,SERVICES,LEMO (UK) LTD,451758,279.28,193269240
BEIS,Met Office,2021-02-02,07 EQUIPMENT,SERVICES,LEMO (UK) LTD,451758,458.43,193269240
BEIS,Met Office,2021-02-02,07 EQUIPMENT,SERVICES,LEMO (UK) LTD,451758,549.12,193269240
BEIS,Met Office,2021-02-02,07 EQUIPMENT,SERVICES,LEMO (UK) LTD,451758,209.96,193269240
BEIS,Met Office,2021-02-02,07 EQUIPMENT,SERVICES,LEMO (UK) LTD,451758,246.6,193269240
BEIS,Met Office,2021-02-02,07 EQUIPMENT,SERVICES,LEMO (UK) LTD,451758,750,193269240
BEIS,Met Office,2021-02-02,07 EQUIPMENT,SERVICES,LEMO (UK) LTD,451758,75,193269240
BEIS,Met Office,2021-02-23,06 ACCOMMODATION,SERVICES,LHR BUSINESS SUPPORT CENTRE LTD,452032,64.51,927365404
BEIS,Met Office,2021-02-09,11 SERVICES,CHIEF FINANCIAL OFFICER,LICENCE BUREAU LTD,452129,75.8,820219467
BEIS,Met Office,2021-02-25,11 SERVICES,SERVICES,LINKWAVE TECHNOLOGIES LTD,452726,4318.3,715940432
BEIS,Met Office,2021-02-09,11 SERVICES,MARKETS,LTS INTERNATIONAL,445268,17953.82,267763712
BEIS,Met Office,2021-02-09,PAYE AND VAT,OTHER,LTS INTERNATIONAL,446002,0,267763712
BEIS,Met Office,2021-02-09,PAYE AND VAT,OTHER,LTS INTERNATIONAL,451551,0,267763712
BEIS,Met Office,2021-02-23,07 EQUIPMENT,SERVICES,M C ENGINEERING SERVICES,452232,356.4,813172066
BEIS,Met Office,2021-02-23,07 EQUIPMENT,SERVICES,M C ENGINEERING SERVICES,452232,357.6,813172066
BEIS,Met Office,2021-02-23,07 EQUIPMENT,SERVICES,M C ENGINEERING SERVICES,452232,631.2,813172066
BEIS,Met Office,2021-02-23,07 EQUIPMENT,SERVICES,M C ENGINEERING SERVICES,452232,357.2,813172066
BEIS,Met Office,2021-02-23,07 EQUIPMENT,SERVICES,M C ENGINEERING SERVICES,452232,1000.8,813172066
BEIS,Met Office,2021-02-23,07 EQUIPMENT,SERVICES,M C ENGINEERING SERVICES,452232,1302,813172066
BEIS,Met Office,2021-02-16,11 SERVICES,CHIEF FINANCIAL OFFICER,MAWASEM LTD,452279,554.72,197694731
BEIS,Met Office,2021-02-03,13 MISCELLANEOUS,SERVICES,MEIHUIZEN INTERNATIONAL,447941,226.63,4450101763
BEIS,Met Office,2021-02-11,11 SERVICES,SERVICES,MERKLE UK THREE LTD T/A MERKLE PERISCOPIX,452140,8315,843316243
BEIS,Met Office,2021-02-23,13 MISCELLANEOUS,SERVICES,MIRANDUS LTD,452518,70,GB250124161
BEIS,Met Office,2021-02-23,11 SERVICES,SCIENCE,MIRANDUS LTD,452519,70,GB250124161
BEIS,Met Office,2021-02-09,11 SERVICES,CHIEF FINANCIAL OFFICER,MITIE SECURITY LTD,451922,20526.35,416706654
BEIS,Met Office,2021-02-09,11 SERVICES,CHIEF FINANCIAL OFFICER,MITIE SECURITY LTD,451923,10263.36,416706654
BEIS,Met Office,2021-02-11,11 SERVICES,CHIEF FINANCIAL OFFICER,MITIE SECURITY LTD,452046,1427.46,416706654
BEIS,Met Office,2021-02-09,11 SERVICES,CHIEF FINANCIAL OFFICER,MITIE SECURITY LTD,452047,29.2,416706654
BEIS,Met Office,2021-02-11,11 SERVICES,CHIEF FINANCIAL OFFICER,MITIE SECURITY LTD,452049,795.7,416706654
BEIS,Met Office,2021-02-11,11 SERVICES,CHIEF FINANCIAL OFFICER,MITIE SECURITY LTD,452097,38.58,416706654
BEIS,Met Office,2021-02-02,11 SERVICES,MARKETS,MOMENTUM INCORPORATED,451798,8000,598958541
BEIS,Met Office,2021-02-02,11 SERVICES,PEOPLE,MYCSP LTD,451825,600,128754393
BEIS,Met Office,2021-02-17,08 SOFTWARE LICENCES,TECHNOLOGY AND CIO,"NAGIOS ENTERPRISES, LLC",10120,579.64,-
BEIS,Met Office,2021-02-17,08 SOFTWARE LICENCES,TECHNOLOGY AND CIO,"NAGIOS ENTERPRISES, LLC",10120,5829.26,-
BEIS,Met Office,2021-02-18,06 ACCOMMODATION,CHIEF FINANCIAL OFFICER,National Oceanography Centre,452399,12.44,GB 338 5487 64
BEIS,Met Office,2021-02-24,07 EQUIPMENT,CHIEF FINANCIAL OFFICER,NATWEST COMMERCIAL CARDS DIVISION,452677,4974.09,N/A
BEIS,Met Office,2021-02-24,TRADE CREDITORS,OTHER,NATWEST COMMERCIAL CARDS DIVISION,452678,156581.73,N/A
BEIS,Met Office,2021-02-02,11 SERVICES,PROGRAMMES,NETTITUDE LIMITED,451678,6000,184 5171 96
BEIS,Met Office,2021-02-09,FIXTURE & FITTINGS,CHIEF FINANCIAL OFFICER,NMCN PLC,451955,144861.63,GB648191516
BEIS,Met Office,2021-02-09,FIXTURE & FITTINGS,CHIEF FINANCIAL OFFICER,NMCN PLC,451955,688.97,GB648191516
BEIS,Met Office,2021-02-02,13 MISCELLANEOUS,CHIEF FINANCIAL OFFICER,NORSCOTT VENDING SERVICES LTD,451677,85,751402071
BEIS,Met Office,2021-02-02,13 MISCELLANEOUS,CHIEF FINANCIAL OFFICER,NORSCOTT VENDING SERVICES LTD,451679,85,751402071
BEIS,Met Office,2021-02-11,13 MISCELLANEOUS,CHIEF FINANCIAL OFFICER,NORSCOTT VENDING SERVICES LTD,452005,85,751402071
BEIS,Met Office,2021-02-25,13 MISCELLANEOUS,CHIEF FINANCIAL OFFICER,NORSCOTT VENDING SERVICES LTD,452805,9.8,751402071
BEIS,Met Office,2021-02-16,06 ACCOMMODATION,MARKETS,Northern Lighthouse Board,452278,474.46,268628908
BEIS,Met Office,2021-02-09,11 SERVICES,SERVICES,NSSL GLOBAL LTD,10086,51.04,725151948
BEIS,Met Office,2021-02-09,11 SERVICES,SERVICES,NSSL GLOBAL LTD,10087,51.04,725151948
BEIS,Met Office,2021-02-17,11 SERVICES,SERVICES,NSSL GLOBAL LTD,10088,51.04,725151948
BEIS,Met Office,2021-02-17,11 SERVICES,SERVICES,NSSL GLOBAL LTD,10089,51.04,725151948
BEIS,Met Office,2021-02-09,06 ACCOMMODATION,CHIEF FINANCIAL OFFICER,OCS Group UK Limited,451948,26949.97,GB238034379
BEIS,Met Office,2021-02-09,06 ACCOMMODATION,CHIEF FINANCIAL OFFICER,OCS Group UK Limited,451948,109308.18,GB238034379
BEIS,Met Office,2021-02-04,11 SERVICES,PEOPLE,OLD FROG LTD,451664,2820,642591532
BEIS,Met Office,2021-02-23,11 SERVICES,PEOPLE,OLD FROG LTD,452608,2820,642591532
BEIS,Met Office,2021-02-02,04 CONTRACTORS,PROGRAMMES,OUTSOURCE UK LIMITED,451681,10379.38,576118722
BEIS,Met Office,2021-02-02,04 CONTRACTORS,TECHNOLOGY AND CIO,OUTSOURCE UK LIMITED,451682,11612.88,576118722
BEIS,Met Office,2021-02-02,04 CONTRACTORS,PEOPLE,OUTSOURCE UK LIMITED,451683,4946.3,576118722
BEIS,Met Office,2021-02-02,04 CONTRACTORS,PROGRAMMES,OUTSOURCE UK LIMITED,451684,4612.5,576118722
BEIS,Met Office,2021-02-02,04 CONTRACTORS,TECHNOLOGY AND CIO,OUTSOURCE UK LIMITED,451685,8000,576118722
BEIS,Met Office,2021-02-02,04 CONTRACTORS,TECHNOLOGY AND CIO,OUTSOURCE UK LIMITED,451686,10800,576118722
BEIS,Met Office,2021-02-09,04 CONTRACTORS,TECHNOLOGY AND CIO,OUTSOURCE UK LIMITED,451775,8701.68,576118722
BEIS,Met Office,2021-02-02,04 CONTRACTORS,PROGRAMMES,OUTSOURCE UK LIMITED,451776,5625,576118722
BEIS,Met Office,2021-02-02,04 CONTRACTORS,PEOPLE,OUTSOURCE UK LIMITED,451777,4999.95,576118722
BEIS,Met Office,2021-02-02,04 CONTRACTORS,TECHNOLOGY AND CIO,OUTSOURCE UK LIMITED,451778,10500,576118722
BEIS,Met Office,2021-02-02,04 CONTRACTORS,TECHNOLOGY AND CIO,OUTSOURCE UK LIMITED,451779,3804.36,576118722
BEIS,Met Office,2021-02-02,04 CONTRACTORS,TECHNOLOGY AND CIO,OUTSOURCE UK LIMITED,451780,7210.06,576118722
BEIS,Met Office,2021-02-02,04 CONTRACTORS,TECHNOLOGY AND CIO,OUTSOURCE UK LIMITED,451781,2128.25,576118722
BEIS,Met Office,2021-02-02,04 CONTRACTORS,TECHNOLOGY AND CIO,OUTSOURCE UK LIMITED,451782,4256.5,576118722
BEIS,Met Office,2021-02-02,04 CONTRACTORS,PROGRAMMES,OUTSOURCE UK LIMITED,451783,5217.45,576118722
BEIS,Met Office,2021-02-02,04 CONTRACTORS,TECHNOLOGY AND CIO,OUTSOURCE UK LIMITED,451784,7338.47,576118722
BEIS,Met Office,2021-02-02,04 CONTRACTORS,PROGRAMMES,OUTSOURCE UK LIMITED,451785,5661.6,576118722
BEIS,Met Office,2021-02-02,04 CONTRACTORS,TECHNOLOGY AND CIO,OUTSOURCE UK LIMITED,451786,6384.6,576118722
BEIS,Met Office,2021-02-02,04 CONTRACTORS,TECHNOLOGY AND CIO,OUTSOURCE UK LIMITED,451787,11475,576118722
BEIS,Met Office,2021-02-02,04 CONTRACTORS,TECHNOLOGY AND CIO,OUTSOURCE UK LIMITED,451788,7769.25,576118722
BEIS,Met Office,2021-02-02,04 CONTRACTORS,TECHNOLOGY AND CIO,OUTSOURCE UK LIMITED,451789,6153.9,576118722
BEIS,Met Office,2021-02-02,04 CONTRACTORS,TECHNOLOGY AND CIO,OUTSOURCE UK LIMITED,451790,7615.35,576118722
BEIS,Met Office,2021-02-02,04 CONTRACTORS,CHIEF FINANCIAL OFFICER,OUTSOURCE UK LIMITED,451791,5533.32,576118722
BEIS,Met Office,2021-02-04,04 CONTRACTORS,TECHNOLOGY AND CIO,OUTSOURCE UK LIMITED,451823,6384.6,576118722
BEIS,Met Office,2021-02-04,04 CONTRACTORS,TECHNOLOGY AND CIO,OUTSOURCE UK LIMITED,451824,4676.88,576118722
BEIS,Met Office,2021-02-09,04 CONTRACTORS,TECHNOLOGY AND CIO,OUTSOURCE UK LIMITED,452044,-892.48,576118722
BEIS,Met Office,2021-02-25,04 CONTRACTORS,TECHNOLOGY AND CIO,OUTSOURCE UK LIMITED,452724,9000,576118722
BEIS,Met Office,2021-02-24,11 SERVICES,TECHNOLOGY AND CIO,PLURALSIGHT,451489,625.43,EU826020045
BEIS,Met Office,2021-02-02,13 MISCELLANEOUS,CHIEF FINANCIAL OFFICER,POSTURITE (UK) LTD,451660,18.54,583565114
BEIS,Met Office,2021-02-02,13 MISCELLANEOUS,CHIEF FINANCIAL OFFICER,POSTURITE (UK) LTD,451661,50,583565114
BEIS,Met Office,2021-02-16,13 MISCELLANEOUS,CHIEF FINANCIAL OFFICER,POSTURITE (UK) LTD,452277,680.14,583565114
BEIS,Met Office,2021-02-23,06 ACCOMMODATION,CHIEF FINANCIAL OFFICER,POWER NI ENERGY LTD,452699,714.32,617518142
BEIS,Met Office,2021-02-16,10 EQUIPMENT MAINTENANCE,SERVICES,PRECISION WATERJET LTD,452367,95.55,879979318
BEIS,Met Office,2021-02-02,08 SOFTWARE LICENCES,TECHNOLOGY AND CIO,PRESENTATION CARTOGRAPHY LTD,451826,38000,-
BEIS,Met Office,2021-02-02,08 SOFTWARE LICENCES,TECHNOLOGY AND CIO,PRESENTATION CARTOGRAPHY LTD,451826,7000,-
BEIS,Met Office,2021-02-02,08 SOFTWARE LICENCES,TECHNOLOGY AND CIO,PRESENTATION CARTOGRAPHY LTD,451826,6600,-
BEIS,Met Office,2021-02-23,11 SERVICES,CHIEF FINANCIAL OFFICER,PRIMETECH (UK) LTD,452646,2220,694212039
BEIS,Met Office,2021-02-04,11 SERVICES,TECHNOLOGY AND CIO,QA LTD,451890,1299,864455303
BEIS,Met Office,2021-02-04,11 SERVICES,TECHNOLOGY AND CIO,QA LTD,451891,584,864455303
BEIS,Met Office,2021-02-04,11 SERVICES,TECHNOLOGY AND CIO,QA LTD,451894,584,864455303
BEIS,Met Office,2021-02-09,11 SERVICES,TECHNOLOGY AND CIO,QA LTD,451990,1299,864455303
BEIS,Met Office,2021-02-09,04 CONTRACTORS,TECHNOLOGY AND CIO,QUALSERV CONSULTING LTD,452002,9771.8,719067718
BEIS,Met Office,2021-02-09,04 CONTRACTORS,PROGRAMMES,QUALSERV CONSULTING LTD,452009,6895.8,719067718
BEIS,Met Office,2021-02-11,04 CONTRACTORS,TECHNOLOGY AND CIO,QUALSERV CONSULTING LTD,452041,11619.6,719067718
BEIS,Met Office,2021-02-09,04 CONTRACTORS,PEOPLE,QUALSERV CONSULTING LTD,452054,7488.36,719067718
BEIS,Met Office,2021-02-09,04 CONTRACTORS,MARKETS,QUALSERV CONSULTING LTD,452058,8964.4,719067718
BEIS,Met Office,2021-02-09,04 CONTRACTORS,SERVICES,QUALSERV CONSULTING LTD,452060,6288,719067718
BEIS,Met Office,2021-02-09,04 CONTRACTORS,CHIEF FINANCIAL OFFICER,QUALSERV CONSULTING LTD,452062,7937.76,719067718
BEIS,Met Office,2021-02-09,04 CONTRACTORS,SERVICES,QUALSERV CONSULTING LTD,452063,13000,719067718
BEIS,Met Office,2021-02-09,04 CONTRACTORS,PROGRAMMES,QUALSERV CONSULTING LTD,452067,8964.4,719067718
BEIS,Met Office,2021-02-09,04 CONTRACTORS,TECHNOLOGY AND CIO,QUALSERV CONSULTING LTD,452068,8800,719067718
BEIS,Met Office,2021-02-09,04 CONTRACTORS,PROGRAMMES,QUALSERV CONSULTING LTD,452069,9000,719067718
BEIS,Met Office,2021-02-09,04 CONTRACTORS,PROGRAMMES,QUALSERV CONSULTING LTD,452094,10309.06,719067718
BEIS,Met Office,2021-02-09,04 CONTRACTORS,TECHNOLOGY AND CIO,QUALSERV CONSULTING LTD,452095,13604.5,719067718
BEIS,Met Office,2021-02-09,04 CONTRACTORS,PROGRAMMES,QUALSERV CONSULTING LTD,452096,6300,719067718
BEIS,Met Office,2021-02-09,04 CONTRACTORS,TECHNOLOGY AND CIO,QUALSERV CONSULTING LTD,452102,10287,719067718
BEIS,Met Office,2021-02-09,04 CONTRACTORS,TECHNOLOGY AND CIO,QUALSERV CONSULTING LTD,452103,6963,719067718
BEIS,Met Office,2021-02-09,04 CONTRACTORS,TECHNOLOGY AND CIO,QUALSERV CONSULTING LTD,452104,6707.2,719067718
BEIS,Met Office,2021-02-25,08 SOFTWARE LICENCES,PEOPLE,QUESTBACK LIMITED,452778,575,GB 864 1783 01
BEIS,Met Office,2021-02-09,10 EQUIPMENT MAINTENANCE,TECHNOLOGY AND CIO,RAMAN POWER TECHNOLOGIES LTD,452107,6480.8,-
BEIS,Met Office,2021-02-24,STOCK,SERVICES,RAYMETRICS S.A. (GREEK ACCOUNT),22312,5369.25,EL999641589
BEIS,Met Office,2021-02-24,STOCK,SERVICES,RAYMETRICS S.A. (GREEK ACCOUNT),22312,654.79,EL999641589
BEIS,Met Office,2021-02-19,STOCK,SERVICES,RAYMETRICS S.A. (LUXEMBOURG ACCOUNT),22065,0,EL999641589
BEIS,Met Office,2021-02-19,STOCK,SERVICES,RAYMETRICS S.A. (LUXEMBOURG ACCOUNT),22065,0,EL999641589
BEIS,Met Office,2021-02-19,TRADE CREDITORS,SERVICES,RAYMETRICS S.A. (LUXEMBOURG ACCOUNT),22065,5461.33,EL999641589
BEIS,Met Office,2021-02-19,TRADE CREDITORS,SERVICES,RAYMETRICS S.A. (LUXEMBOURG ACCOUNT),22065,666.02,EL999641589
BEIS,Met Office,2021-02-19,STOCK,SERVICES,RAYMETRICS S.A. (LUXEMBOURG ACCOUNT),22313,-654.79,EL999641589
BEIS,Met Office,2021-02-19,STOCK,SERVICES,RAYMETRICS S.A. (LUXEMBOURG ACCOUNT),22313,-5369.25,EL999641589
BEIS,Met Office,2021-02-09,12 INTERNATIONAL,MARKETS,REDACTED PERSONAL DATA,10097,2551.89,-
BEIS,Met Office,2021-02-09,12 INTERNATIONAL,MARKETS,REDACTED PERSONAL DATA,10097,156.76,-
BEIS,Met Office,2021-02-09,12 INTERNATIONAL,MARKETS,REDACTED PERSONAL DATA,10105,2551.9,-
BEIS,Met Office,2021-02-02,06 ACCOMMODATION,CHIEF FINANCIAL OFFICER,REDACTED PERSONAL DATA,443255,80,166458184
BEIS,Met Office,2021-02-02,11 SERVICES,SERVICES,REDACTED PERSONAL DATA,451548,130.24,-
BEIS,Met Office,2021-02-09,11 SERVICES,CHIEF FINANCIAL OFFICER,REDACTED PERSONAL DATA,451947,253.3,729159704
BEIS,Met Office,2021-02-09,06 ACCOMMODATION,CHIEF FINANCIAL OFFICER,REDACTED PERSONAL DATA,452076,200,N/A
BEIS,Met Office,2021-02-16,06 ACCOMMODATION,CHIEF FINANCIAL OFFICER,REDACTED PERSONAL DATA,452287,511,426523462
BEIS,Met Office,2021-02-25,11 SERVICES,CHIEF FINANCIAL OFFICER,REDACTED PERSONAL DATA,452789,149,729159704
BEIS,Met Office,2021-02-25,11 SERVICES,CHIEF FINANCIAL OFFICER,REDACTED PERSONAL DATA,452790,374,729159704
BEIS,Met Office,2021-02-09,04 CONTRACTORS,PROGRAMMES,REED,451943,6400,835515525
BEIS,Met Office,2021-02-09,04 CONTRACTORS,TECHNOLOGY AND CIO,REED,451943,9174,835515525
BEIS,Met Office,2021-02-09,04 CONTRACTORS,TECHNOLOGY AND CIO,REED,451943,9474,835515525
BEIS,Met Office,2021-02-09,04 CONTRACTORS,TECHNOLOGY AND CIO,REED,451943,9537,835515525
BEIS,Met Office,2021-02-16,06 ACCOMMODATION,MARKETS,RESPECT CREMATORIA LTD,452393,200,-
BEIS,Met Office,2021-02-16,06 ACCOMMODATION,MARKETS,RESPECT CREMATORIA LTD,452393,35,-
BEIS,Met Office,2021-02-16,11 SERVICES,OFFICE OF THE CEO,RIGHT MANAGEMENT LTD,452426,1800,480846914
BEIS,Met Office,2021-02-16,11 SERVICES,OFFICE OF THE CEO,RIGHT MANAGEMENT LTD,452427,8000,480846914
BEIS,Met Office,2021-02-16,11 SERVICES,OFFICE OF THE CEO,RIGHT MANAGEMENT LTD,452428,500,480846914
BEIS,Met Office,2021-02-09,11 SERVICES,MARKETS,RIMES,10092,20396.93,-
BEIS,Met Office,2021-02-16,06 ACCOMMODATION,CHIEF FINANCIAL OFFICER,RIVER RIDGE,452276,109.09,176286083
BEIS,Met Office,2021-02-16,11 SERVICES,PEOPLE,RIVER TRAINING AND HR,452275,790,-
BEIS,Met Office,2021-02-16,06 ACCOMMODATION,CHIEF FINANCIAL OFFICER,RIVEROAK MSE LIMITED,452394,2049.19,326 084 707
BEIS,Met Office,2021-02-16,11 SERVICES,SERVICES,ROCKSURE SYSTEMS LTD T/A PEOPLESAFE,451550,-1070.88,859951462
BEIS,Met Office,2021-02-16,11 SERVICES,SERVICES,ROCKSURE SYSTEMS LTD T/A PEOPLESAFE,452274,1728,859951462
BEIS,Met Office,2021-02-25,06 ACCOMMODATION,CHIEF FINANCIAL OFFICER,ROLLO POWER SOLUTIONS,442589,544,100516042
BEIS,Met Office,2021-02-25,06 ACCOMMODATION,CHIEF FINANCIAL OFFICER,ROLLO POWER SOLUTIONS,442623,544,100516042
BEIS,Met Office,2021-02-25,06 ACCOMMODATION,CHIEF FINANCIAL OFFICER,ROLLO POWER SOLUTIONS,448685,-544,100516042
BEIS,Met Office,2021-02-25,06 ACCOMMODATION,CHIEF FINANCIAL OFFICER,ROLLO POWER SOLUTIONS,448686,-414,100516042
BEIS,Met Office,2021-02-25,06 ACCOMMODATION,CHIEF FINANCIAL OFFICER,ROLLO POWER SOLUTIONS,448767,-544,100516042
BEIS,Met Office,2021-02-25,06 ACCOMMODATION,CHIEF FINANCIAL OFFICER,ROLLO POWER SOLUTIONS,448768,-544,100516042
BEIS,Met Office,2021-02-25,06 ACCOMMODATION,CHIEF FINANCIAL OFFICER,ROLLO POWER SOLUTIONS,448769,-544,100516042
BEIS,Met Office,2021-02-25,06 ACCOMMODATION,CHIEF FINANCIAL OFFICER,ROLLO POWER SOLUTIONS,448770,-544,100516042
BEIS,Met Office,2021-02-25,06 ACCOMMODATION,CHIEF FINANCIAL OFFICER,ROLLO POWER SOLUTIONS,448772,-414,100516042
BEIS,Met Office,2021-02-25,06 ACCOMMODATION,CHIEF FINANCIAL OFFICER,ROLLO POWER SOLUTIONS,452784,3145.66,100516042
BEIS,Met Office,2021-02-25,06 ACCOMMODATION,CHIEF FINANCIAL OFFICER,ROLLO POWER SOLUTIONS,452784,25,100516042
BEIS,Met Office,2021-02-23,11 SERVICES,MARKETS,ROWE IT LTD,450600,6300,924964394
BEIS,Met Office,2021-02-09,11 SERVICES,MARKETS,ROWE IT LTD,452021,46077.5,924964394
BEIS,Met Office,2021-02-09,11 SERVICES,MARKETS,ROWE IT LTD,452022,5950,924964394
BEIS,Met Office,2021-02-09,11 SERVICES,MARKETS,ROWE IT LTD,452023,50726.25,924964394
BEIS,Met Office,2021-02-09,11 SERVICES,PROGRAMMES,ROWE IT LTD,452024,88818.75,924964394
BEIS,Met Office,2021-02-09,04 CONTRACTORS,PROGRAMMES,ROWE IT LTD,452106,13500,924964394
BEIS,Met Office,2021-02-23,11 SERVICES,MARKETS,ROWE IT LTD,452108,6000,924964394
BEIS,Met Office,2021-02-09,11 SERVICES,MARKETS,ROWE IT LTD,452109,27151.25,924964394
BEIS,Met Office,2021-02-16,11 SERVICES,MARKETS,RSM,452273,3500,890965570
BEIS,Met Office,2021-02-18,11 SERVICES,MARKETS,SAVANTA GROUP LTD,452458,4300,GB 749 7521 90
BEIS,Met Office,2021-02-11,11 SERVICES,PROGRAMMES,SAYERS AND PARTNERS LLP,452116,93458,996 6059 57
BEIS,Met Office,2021-02-02,11 SERVICES,SCIENCE,SCIENCE & TECHNOLOGY FACILITIES COUNCIL,451475,37500,618367325
BEIS,Met Office,2021-02-09,13 MISCELLANEOUS,CHIEF FINANCIAL OFFICER,SELECTA UK LTD,451822,130.26,581705924
BEIS,Met Office,2021-02-23,06 ACCOMMODATION,CHIEF FINANCIAL OFFICER,SHETLAND CLEANING SERVICES,452597,725.48,430028404
BEIS,Met Office,2021-02-03,11 SERVICES,TECHNOLOGY AND CIO,SIGNAVIO GMBH,450701,12960,DE265675123
BEIS,Met Office,2021-02-17,11 SERVICES,SERVICES,SIMILARWEBB UK LTD,10095,38642.98,GB174984654
BEIS,Met Office,2021-02-04,11 SERVICES,MARKETS,SKILLTEC LIMITED,449102,795,909833105
BEIS,Met Office,2021-02-04,11 SERVICES,MARKETS,SKILLTEC LIMITED,449103,795,909833105
BEIS,Met Office,2021-02-04,11 SERVICES,MARKETS,SKILLTEC LIMITED,449104,795,909833105
BEIS,Met Office,2021-02-04,11 SERVICES,MARKETS,SKILLTEC LIMITED,449105,1785,909833105
BEIS,Met Office,2021-02-04,11 SERVICES,SERVICES,SKILLTEC LIMITED,451254,795,909833105
BEIS,Met Office,2021-02-04,11 SERVICES,SERVICES,SKILLTEC LIMITED,451255,795,909833105
BEIS,Met Office,2021-02-04,11 SERVICES,SERVICES,SKILLTEC LIMITED,451256,795,909833105
BEIS,Met Office,2021-02-04,11 SERVICES,SERVICES,SKILLTEC LIMITED,451257,795,909833105
BEIS,Met Office,2021-02-11,11 SERVICES,PEOPLE,SOCIAL & LOCAL,451755,6134.5,126 9600 12
BEIS,Met Office,2021-02-18,11 SERVICES,MARKETS,SOCIAL SENSING LTD,452442,2758,-
BEIS,Met Office,2021-02-23,11 SERVICES,PEOPLE,SODEXO MOT SOL UK  LTD (CHILDCARE RECEIPTS),452600,411.03,733644335
BEIS,Met Office,2021-02-04,11 SERVICES,PROGRAMMES,SOFTCAT LTD,451882,168.31,491848503
BEIS,Met Office,2021-02-23,08 SOFTWARE LICENCES,TECHNOLOGY AND CIO,SOFTWAREONE,450528,368.73,GB 942 5301 43
BEIS,Met Office,2021-02-23,08 SOFTWARE LICENCES,TECHNOLOGY AND CIO,SOFTWAREONE,450529,348.65,GB 942 5301 43
BEIS,Met Office,2021-02-23,08 SOFTWARE LICENCES,TECHNOLOGY AND CIO,SOFTWAREONE,450530,368.33,GB 942 5301 43
BEIS,Met Office,2021-02-23,08 SOFTWARE LICENCES,TECHNOLOGY AND CIO,SOFTWAREONE,450531,368.7,GB 942 5301 43
BEIS,Met Office,2021-02-23,08 SOFTWARE LICENCES,TECHNOLOGY AND CIO,SOFTWAREONE,450532,368.52,GB 942 5301 43
BEIS,Met Office,2021-02-23,08 SOFTWARE LICENCES,TECHNOLOGY AND CIO,SOFTWAREONE,450533,357.13,GB 942 5301 43
BEIS,Met Office,2021-02-23,08 SOFTWARE LICENCES,TECHNOLOGY AND CIO,SOFTWAREONE,450534,11004.05,GB 942 5301 43
BEIS,Met Office,2021-02-23,08 SOFTWARE LICENCES,TECHNOLOGY AND CIO,SOFTWAREONE,451093,7931.21,GB 942 5301 43
BEIS,Met Office,2021-02-23,08 SOFTWARE LICENCES,TECHNOLOGY AND CIO,SOFTWAREONE,451266,358.89,GB 942 5301 43
BEIS,Met Office,2021-02-23,08 SOFTWARE LICENCES,TECHNOLOGY AND CIO,SOFTWAREONE,452132,7885.9,GB 942 5301 43
BEIS,Met Office,2021-02-18,11 SERVICES,SERVICES,SOFTWIRE TECHNOLOGY LIMITED,452451,2520,752 1253 57
BEIS,Met Office,2021-02-18,11 SERVICES,MARKETS,SOFTWIRE TECHNOLOGY LIMITED,452454,8000,752 1253 57
BEIS,Met Office,2021-02-16,04 CONTRACTORS,PROGRAMMES,SOLOS CONSULTANTS LTD,452263,17998,812035476
BEIS,Met Office,2021-02-16,04 CONTRACTORS,PROGRAMMES,SOLOS CONSULTANTS LTD,452334,6981.4,812035476
BEIS,Met Office,2021-02-16,04 CONTRACTORS,MARKETS,SOLOS CONSULTANTS LTD,452335,8540,812035476
BEIS,Met Office,2021-02-16,04 CONTRACTORS,PROGRAMMES,SOLOS CONSULTANTS LTD,452336,8988.4,812035476
BEIS,Met Office,2021-02-16,04 CONTRACTORS,PROGRAMMES,SOLOS CONSULTANTS LTD,452337,8756.8,812035476
BEIS,Met Office,2021-02-16,04 CONTRACTORS,TECHNOLOGY AND CIO,SOLOS CONSULTANTS LTD,452338,4400,812035476
BEIS,Met Office,2021-02-16,04 CONTRACTORS,PEOPLE,SOLOS CONSULTANTS LTD,452339,8988.4,812035476
BEIS,Met Office,2021-02-16,04 CONTRACTORS,PROGRAMMES,SOLOS CONSULTANTS LTD,452340,8988.4,812035476
BEIS,Met Office,2021-02-16,04 CONTRACTORS,TECHNOLOGY AND CIO,SOLOS CONSULTANTS LTD,452341,13520,812035476
BEIS,Met Office,2021-02-16,04 CONTRACTORS,CHIEF FINANCIAL OFFICER,SOLOS CONSULTANTS LTD,452342,11872,812035476
BEIS,Met Office,2021-02-16,04 CONTRACTORS,MARKETS,SOLOS CONSULTANTS LTD,452343,8925.2,812035476
BEIS,Met Office,2021-02-16,04 CONTRACTORS,CHIEF FINANCIAL OFFICER,SOLOS CONSULTANTS LTD,452344,11020.82,812035476
BEIS,Met Office,2021-02-16,04 CONTRACTORS,TECHNOLOGY AND CIO,SOLOS CONSULTANTS LTD,452345,10070,812035476
BEIS,Met Office,2021-02-16,04 CONTRACTORS,PROGRAMMES,SOLOS CONSULTANTS LTD,452346,13787.8,812035476
BEIS,Met Office,2021-02-16,04 CONTRACTORS,PROGRAMMES,SOLOS CONSULTANTS LTD,452348,15600,812035476
BEIS,Met Office,2021-02-16,04 CONTRACTORS,TECHNOLOGY AND CIO,SOLOS CONSULTANTS LTD,452349,10475,812035476
BEIS,Met Office,2021-02-16,04 CONTRACTORS,TECHNOLOGY AND CIO,SOLOS CONSULTANTS LTD,452350,6693.9,812035476
BEIS,Met Office,2021-02-16,04 CONTRACTORS,TECHNOLOGY AND CIO,SOLOS CONSULTANTS LTD,452351,12675,812035476
BEIS,Met Office,2021-02-16,04 CONTRACTORS,MARKETS,SOLOS CONSULTANTS LTD,452352,9299.8,812035476
BEIS,Met Office,2021-02-16,04 CONTRACTORS,MARKETS,SOLOS CONSULTANTS LTD,452353,7886.8,812035476
BEIS,Met Office,2021-02-16,04 CONTRACTORS,MARKETS,SOLOS CONSULTANTS LTD,452354,9614,812035476
BEIS,Met Office,2021-02-16,04 CONTRACTORS,TECHNOLOGY AND CIO,SOLOS CONSULTANTS LTD,452355,13754.91,812035476
BEIS,Met Office,2021-02-16,04 CONTRACTORS,TECHNOLOGY AND CIO,SOLOS CONSULTANTS LTD,452356,15675,812035476
BEIS,Met Office,2021-02-16,04 CONTRACTORS,PROGRAMMES,SOLOS CONSULTANTS LTD,452357,17680,812035476
BEIS,Met Office,2021-02-16,04 CONTRACTORS,TECHNOLOGY AND CIO,SOLOS CONSULTANTS LTD,452358,10400,812035476
BEIS,Met Office,2021-02-16,04 CONTRACTORS,CHIEF FINANCIAL OFFICER,SOLOS CONSULTANTS LTD,452359,6353.6,812035476
BEIS,Met Office,2021-02-16,04 CONTRACTORS,TECHNOLOGY AND CIO,SOLOS CONSULTANTS LTD,452360,8025.6,812035476
BEIS,Met Office,2021-02-16,04 CONTRACTORS,PEOPLE,SOLOS CONSULTANTS LTD,452361,7000,812035476
BEIS,Met Office,2021-02-16,04 CONTRACTORS,TECHNOLOGY AND CIO,SOLOS CONSULTANTS LTD,452362,8200,812035476
BEIS,Met Office,2021-02-16,04 CONTRACTORS,TECHNOLOGY AND CIO,SOLOS CONSULTANTS LTD,452363,13585,812035476
BEIS,Met Office,2021-02-16,04 CONTRACTORS,PROGRAMMES,SOLOS CONSULTANTS LTD,452364,10920,812035476
BEIS,Met Office,2021-02-23,11 SERVICES,PEOPLE,SOURCE COACHING CONSULTANCY,452618,1340,170422048
BEIS,Met Office,2021-02-23,06 ACCOMMODATION,CHIEF FINANCIAL OFFICER,SOUTH WEST WATER LTD,452607,1234.2,236873674
BEIS,Met Office,2021-02-23,06 ACCOMMODATION,CHIEF FINANCIAL OFFICER,SOUTH WEST WATER LTD,452623,2455.15,236873674
BEIS,Met Office,2021-02-25,11 SERVICES,MARKETS,SPOKE (INTERACTIVE) LTD,452138,700,840156451
BEIS,Met Office,2021-02-09,11 SERVICES,TECHNOLOGY AND CIO,SSE CONTRACTING LTD,452090,10137.45,570118464
BEIS,Met Office,2021-02-16,07 EQUIPMENT,TECHNOLOGY AND CIO,SSE CONTRACTING LTD,452262,2548.23,570118464
BEIS,Met Office,2021-02-16,11 SERVICES,TECHNOLOGY AND CIO,SSE CONTRACTING LTD,452272,929.44,570118464
BEIS,Met Office,2021-02-09,11 SERVICES,CHIEF FINANCIAL OFFICER,ST JOHN AMBULANCE,451946,230,564553916
BEIS,Met Office,2021-02-11,11 SERVICES,CHIEF FINANCIAL OFFICER,SURE SOUTH ATLANTIC LTD,452036,4792,-
BEIS,Met Office,2021-02-09,11 SERVICES,CHIEF FINANCIAL OFFICER,SURE SOUTH ATLANTIC LTD,452038,591.15,-
BEIS,Met Office,2021-02-18,11 SERVICES,CHIEF FINANCIAL OFFICER,SURE SOUTH ATLANTIC LTD,452444,1276.59,NOVATREG
BEIS,Met Office,2021-02-25,11 SERVICES,CHIEF FINANCIAL OFFICER,SURE SOUTH ATLANTIC LTD,452723,563,-
BEIS,Met Office,2021-02-16,11 SERVICES,CHIEF FINANCIAL OFFICER,SURE SOUTH ATLANTIC LTD (ST HELENA),452261,1458.52,30005
BEIS,Met Office,2021-02-16,12 INTERNATIONAL,MARKETS,SWANTECH LOGISTICS LTD,452260,947.96,769332401
BEIS,Met Office,2021-02-23,06 ACCOMMODATION,OFFICE OF THE CEO,TASTE,452508,110.2,854369494
BEIS,Met Office,2021-02-16,11 SERVICES,CHIEF FINANCIAL OFFICER,TELEFONICA O2 UK LIMITED,452377,50,778603785
BEIS,Met Office,2021-02-16,11 SERVICES,CHIEF FINANCIAL OFFICER,TELEFONICA O2 UK LIMITED,452378,7772.14,778603785
BEIS,Met Office,2021-02-16,11 SERVICES,CHIEF FINANCIAL OFFICER,TELEFONICA O2 UK LIMITED,452379,50,778603785
BEIS,Met Office,2021-02-16,11 SERVICES,CHIEF FINANCIAL OFFICER,TELEFONICA O2 UK LIMITED,452380,50,778603785
BEIS,Met Office,2021-02-16,11 SERVICES,CHIEF FINANCIAL OFFICER,TELEFONICA O2 UK LIMITED,452381,50,778603785
BEIS,Met Office,2021-02-09,11 SERVICES,CHIEF FINANCIAL OFFICER,TELIA FINLAND OYJ,22278,158.07,FI14756079
BEIS,Met Office,2021-02-02,06 ACCOMMODATION,CHIEF FINANCIAL OFFICER,TENNIE FACILITIES PROPERTY MANAGEMENT LTD,451654,165.72,982055803
BEIS,Met Office,2021-02-09,06 ACCOMMODATION,CHIEF FINANCIAL OFFICER,THE CLEANING CREW COMPANY,451945,567,343579772
BEIS,Met Office,2021-02-16,11 SERVICES,PEOPLE,The Open University,452392,2160,650748918
BEIS,Met Office,2021-02-09,13 MISCELLANEOUS,OFFICE OF THE CEO,THOMSON REUTERS (PROFESSIONAL) UK LTD,452121,10527.92,900548743
BEIS,Met Office,2021-02-04,08 SOFTWARE LICENCES,OFFICE OF THE CEO,THYMOMETRICS LIMITED,451802,48375,GB 154 4517 15
BEIS,Met Office,2021-02-09,06 ACCOMMODATION,MARKETS,Trinity House,451883,485,243120414
BEIS,Met Office,2021-02-09,06 ACCOMMODATION,MARKETS,Trinity House,451883,12,243120414
BEIS,Met Office,2021-02-09,06 ACCOMMODATION,MARKETS,Trinity House,451884,485,243120414
BEIS,Met Office,2021-02-09,06 ACCOMMODATION,MARKETS,Trinity House,451884,12,243120414
BEIS,Met Office,2021-02-09,12 INTERNATIONAL,MARKETS,TRIPOS CONSULTANTS,452105,5263.19,610652671
BEIS,Met Office,2021-02-24,07 EQUIPMENT,SERVICES,TRUE NORTH TECHNOLOGIES,10096,88.95,-
BEIS,Met Office,2021-02-24,07 EQUIPMENT,SERVICES,TRUE NORTH TECHNOLOGIES,10096,6012.27,-
BEIS,Met Office,2021-02-09,11 SERVICES,PROGRAMMES,UCAR INCOMING PAYMENTS,10083,14344.66,-
BEIS,Met Office,2021-02-17,11 SERVICES,PROGRAMMES,UCAR INCOMING PAYMENTS,10106,4826.81,-
BEIS,Met Office,2021-02-23,11 SERVICES,PROGRAMMES,UK ATOMIC ENERGY AUTHORITY,452605,18000,GB570101391
BEIS,Met Office,2021-02-23,11 SERVICES,SERVICES,UK TELEMATICS LIMITED,452680,335.52,GB763051643
BEIS,Met Office,2021-02-09,11 SERVICES,TECHNOLOGY AND CIO,UKCLOUD LTD,451954,1658.4,172647982
BEIS,Met Office,2021-02-02,11 SERVICES,MARKETS,ULTRA ELECTRONICS LTD NUCLEAR CONTROL SYSTEMS,451483,7905.11,123340754
BEIS,Met Office,2021-02-02,11 SERVICES,MARKETS,ULTRA ELECTRONICS LTD NUCLEAR CONTROL SYSTEMS,451484,9923.67,123340754
BEIS,Met Office,2021-02-02,11 SERVICES,MARKETS,ULTRA ELECTRONICS LTD NUCLEAR CONTROL SYSTEMS,451757,5319.92,123340754
BEIS,Met Office,2021-02-17,12 INTERNATIONAL,SERVICES,Unesco,451958,10000,-
BEIS,Met Office,2021-02-23,11 SERVICES,PROGRAMMES,University College London,452702,44121.21,524371168
BEIS,Met Office,2021-02-02,13 MISCELLANEOUS,SCIENCE,UNIVERSITY OF EXETER,451794,2000,142047795
BEIS,Met Office,2021-02-11,11 SERVICES,SCIENCE,UNIVERSITY OF EXETER,452028,18500,142047795
BEIS,Met Office,2021-02-23,11 SERVICES,MARKETS,University Of Leeds,449424,3260.12,613451470
BEIS,Met Office,2021-02-02,11 SERVICES,PROGRAMMES,University Of Leeds,451445,19333.6,613451470
BEIS,Met Office,2021-02-09,11 SERVICES,MARKETS,University Of Leeds,451985,3260.12,613451470
BEIS,Met Office,2021-02-16,11 SERVICES,PROGRAMMES,University Of Leeds,452259,108925,613451470
BEIS,Met Office,2021-02-18,13 MISCELLANEOUS,SCIENCE,University Of Leeds,452525,1000,613451470
BEIS,Met Office,2021-02-23,11 SERVICES,SCIENCE,University Of Leeds,452542,125000,613451470
BEIS,Met Office,2021-02-23,11 SERVICES,PROGRAMMES,University Of Leeds,452700,63899,613451470
BEIS,Met Office,2021-02-02,13 MISCELLANEOUS,SCIENCE,UNIVERSITY OF OXFORD,450251,1000,125506730
BEIS,Met Office,2021-02-02,13 MISCELLANEOUS,SCIENCE,UNIVERSITY OF OXFORD,450691,-1000,125506730
BEIS,Met Office,2021-02-02,11 SERVICES,PROGRAMMES,UNIVERSITY OF OXFORD,451796,48000,125506730
BEIS,Met Office,2021-02-04,13 MISCELLANEOUS,SCIENCE,UNIVERSITY OF OXFORD,451815,250,125506730
BEIS,Met Office,2021-02-02,11 SERVICES,PROGRAMMES,UNIVERSITY OF OXFORD,451831,-48000,125506730
BEIS,Met Office,2021-02-02,11 SERVICES,PROGRAMMES,UNIVERSITY OF OXFORD,451832,48000,125506730
BEIS,Met Office,2021-02-02,11 SERVICES,PROGRAMMES,University of Plymouth,447126,7464,168287859
BEIS,Met Office,2021-02-02,11 SERVICES,PROGRAMMES,University of Plymouth,449974,22669.6,168287859
BEIS,Met Office,2021-02-02,11 SERVICES,PROGRAMMES,University of Plymouth,451657,-7464,168287859
BEIS,Met Office,2021-02-02,11 SERVICES,PROGRAMMES,University of Plymouth,451658,-22669.6,168287859
BEIS,Met Office,2021-02-02,11 SERVICES,PROGRAMMES,University of Plymouth,451760,7464,168287859
BEIS,Met Office,2021-02-25,13 MISCELLANEOUS,SCIENCE,University Of Reading,448177,420.83,200012659
BEIS,Met Office,2021-02-02,11 SERVICES,PROGRAMMES,University Of Reading,451432,58552.44,200012659
BEIS,Met Office,2021-02-04,11 SERVICES,PROGRAMMES,University Of Reading,451462,40565.88,200012659
BEIS,Met Office,2021-02-04,11 SERVICES,SCIENCE,University Of Reading,451463,25507,200012659
BEIS,Met Office,2021-02-04,11 SERVICES,SCIENCE,University Of Reading,451687,9064.96,200012659
BEIS,Met Office,2021-02-04,11 SERVICES,PROGRAMMES,University Of Reading,451881,57460,200012659
BEIS,Met Office,2021-02-04,11 SERVICES,PROGRAMMES,University Of Reading,451886,-40565.88,200012659
BEIS,Met Office,2021-02-16,11 SERVICES,PROGRAMMES,University Of Reading,451987,80000,200012659
BEIS,Met Office,2021-02-11,11 SERVICES,PROGRAMMES,University Of Reading,451988,83800,200012659
BEIS,Met Office,2021-02-18,11 SERVICES,PROGRAMMES,University Of Reading,452017,116994.57,200012659
BEIS,Met Office,2021-02-11,11 SERVICES,PROGRAMMES,University Of Reading,452088,50740,200012659
BEIS,Met Office,2021-02-09,13 MISCELLANEOUS,SCIENCE,University Of Reading,452115,1000,200012659
BEIS,Met Office,2021-02-18,13 MISCELLANEOUS,SCIENCE,University Of Reading,452522,333.33,200012659
BEIS,Met Office,2021-02-23,11 SERVICES,PROGRAMMES,University Of Reading,452527,26588,200012659
BEIS,Met Office,2021-02-25,11 SERVICES,MARKETS,VAISALA LTD,450267,648.5,336100011
BEIS,Met Office,2021-02-25,11 SERVICES,MARKETS,VAISALA LTD,450267,1791,336100011
BEIS,Met Office,2021-02-25,11 SERVICES,MARKETS,VAISALA LTD,450267,304,336100011
BEIS,Met Office,2021-02-25,11 SERVICES,MARKETS,VAISALA LTD,450268,632.5,336100011
BEIS,Met Office,2021-02-25,11 SERVICES,MARKETS,VAISALA LTD,450268,1746,336100011
BEIS,Met Office,2021-02-25,11 SERVICES,MARKETS,VAISALA LTD,450268,296,336100011
BEIS,Met Office,2021-02-25,11 SERVICES,MARKETS,VAISALA LTD,451488,7020,336100011
BEIS,Met Office,2021-02-25,11 SERVICES,MARKETS,VAISALA LTD,451488,6700,336100011
BEIS,Met Office,2021-02-25,11 SERVICES,MARKETS,VAISALA LTD,451488,7019.27,336100011
BEIS,Met Office,2021-02-25,11 SERVICES,MARKETS,VAISALA LTD,451488,5040,336100011
BEIS,Met Office,2021-02-25,11 SERVICES,MARKETS,VAISALA LTD,451488,1400,336100011
BEIS,Met Office,2021-02-25,11 SERVICES,MARKETS,VAISALA LTD,451488,1400,336100011
BEIS,Met Office,2021-02-25,11 SERVICES,MARKETS,VAISALA LTD,451488,7069.09,336100011
BEIS,Met Office,2021-02-25,11 SERVICES,MARKETS,VAISALA LTD,451488,4320,336100011
BEIS,Met Office,2021-02-25,11 SERVICES,MARKETS,VAISALA LTD,451488,1200,336100011
BEIS,Met Office,2021-02-25,11 SERVICES,MARKETS,VAISALA LTD,451488,1200,336100011
BEIS,Met Office,2021-02-25,11 SERVICES,MARKETS,VAISALA LTD,451488,4148.73,336100011
BEIS,Met Office,2021-02-25,11 SERVICES,MARKETS,VAISALA LTD,451488,2880,336100011
BEIS,Met Office,2021-02-25,11 SERVICES,MARKETS,VAISALA LTD,451488,800,336100011
BEIS,Met Office,2021-02-25,11 SERVICES,MARKETS,VAISALA LTD,451488,800,336100011
BEIS,Met Office,2021-02-25,11 SERVICES,MARKETS,VAISALA LTD,451488,12346.18,336100011
BEIS,Met Office,2021-02-25,11 SERVICES,MARKETS,VAISALA LTD,451488,8640,336100011
BEIS,Met Office,2021-02-25,11 SERVICES,MARKETS,VAISALA LTD,451488,2400,336100011
BEIS,Met Office,2021-02-25,11 SERVICES,MARKETS,VAISALA LTD,451488,2400,336100011
BEIS,Met Office,2021-02-25,11 SERVICES,MARKETS,VAISALA LTD,451488,4812.73,336100011
BEIS,Met Office,2021-02-25,11 SERVICES,MARKETS,VAISALA LTD,451488,2880,336100011
BEIS,Met Office,2021-02-25,11 SERVICES,MARKETS,VAISALA LTD,451488,800,336100011
BEIS,Met Office,2021-02-25,11 SERVICES,MARKETS,VAISALA LTD,451488,800,336100011
BEIS,Met Office,2021-02-09,07 EQUIPMENT,SERVICES,VAISALA OYJ,22227,14507.96,FI01244162
BEIS,Met Office,2021-02-23,11 SERVICES,CHIEF FINANCIAL OFFICER,Vodafone Limited,452586,10.21,569953277
BEIS,Met Office,2021-02-23,11 SERVICES,CHIEF FINANCIAL OFFICER,Vodafone Limited,452587,10.21,569953277
BEIS,Met Office,2021-02-23,11 SERVICES,CHIEF FINANCIAL OFFICER,Vodafone Limited,452588,10.21,569953277
BEIS,Met Office,2021-02-23,11 SERVICES,CHIEF FINANCIAL OFFICER,Vodafone Limited,452589,10.21,569953277
BEIS,Met Office,2021-02-23,11 SERVICES,CHIEF FINANCIAL OFFICER,Vodafone Limited,452590,10.21,569953277
BEIS,Met Office,2021-02-11,03 STAFF COSTS T&S,SERVICES,VOLKSWAGEN GROUP LEASING,452119,84.03,BG745963883
BEIS,Met Office,2021-02-02,04 CONTRACTORS,CHIEF FINANCIAL OFFICER,WA CONSULTANTS LTD,451792,5587.2,876328977
BEIS,Met Office,2021-02-04,04 CONTRACTORS,TECHNOLOGY AND CIO,WA CONSULTANTS LTD,451892,13969.6,876328977
BEIS,Met Office,2021-02-04,04 CONTRACTORS,PROGRAMMES,WA CONSULTANTS LTD,451893,8752.4,876328977
BEIS,Met Office,2021-02-09,04 CONTRACTORS,SERVICES,WA CONSULTANTS LTD,451903,10450,876328977
BEIS,Met Office,2021-02-09,04 CONTRACTORS,TECHNOLOGY AND CIO,WA CONSULTANTS LTD,451920,5660.3,876328977
BEIS,Met Office,2021-02-09,04 CONTRACTORS,PROGRAMMES,WA CONSULTANTS LTD,451921,906,876328977
BEIS,Met Office,2021-02-09,04 CONTRACTORS,TECHNOLOGY AND CIO,WA CONSULTANTS LTD,451960,10326.88,876328977
BEIS,Met Office,2021-02-09,04 CONTRACTORS,CHIEF FINANCIAL OFFICER,WA CONSULTANTS LTD,451969,10257,876328977
BEIS,Met Office,2021-02-09,04 CONTRACTORS,PROGRAMMES,WA CONSULTANTS LTD,451970,8772.2,876328977
BEIS,Met Office,2021-02-09,04 CONTRACTORS,TECHNOLOGY AND CIO,WA CONSULTANTS LTD,451971,10000,876328977
BEIS,Met Office,2021-02-09,04 CONTRACTORS,TECHNOLOGY AND CIO,WA CONSULTANTS LTD,451972,11900,876328977
BEIS,Met Office,2021-02-09,04 CONTRACTORS,TECHNOLOGY AND CIO,WA CONSULTANTS LTD,451973,8726.38,876328977
BEIS,Met Office,2021-02-09,04 CONTRACTORS,TECHNOLOGY AND CIO,WA CONSULTANTS LTD,451974,10870.4,876328977
BEIS,Met Office,2021-02-09,04 CONTRACTORS,PROGRAMMES,WA CONSULTANTS LTD,451975,2178,876328977
BEIS,Met Office,2021-02-09,04 CONTRACTORS,PROGRAMMES,WA CONSULTANTS LTD,451976,25180.2,876328977
BEIS,Met Office,2021-02-09,04 CONTRACTORS,PEOPLE,WA CONSULTANTS LTD,451977,4469.76,876328977
BEIS,Met Office,2021-02-09,04 CONTRACTORS,TECHNOLOGY AND CIO,WA CONSULTANTS LTD,451978,10770.6,876328977
BEIS,Met Office,2021-02-09,04 CONTRACTORS,TECHNOLOGY AND CIO,WA CONSULTANTS LTD,451979,10870.4,876328977
BEIS,Met Office,2021-02-09,04 CONTRACTORS,TECHNOLOGY AND CIO,WA CONSULTANTS LTD,451980,11668.14,876328977
BEIS,Met Office,2021-02-09,04 CONTRACTORS,TECHNOLOGY AND CIO,WA CONSULTANTS LTD,451997,3500,876328977
BEIS,Met Office,2021-02-09,04 CONTRACTORS,TECHNOLOGY AND CIO,WA CONSULTANTS LTD,451998,11142.16,876328977
BEIS,Met Office,2021-02-09,04 CONTRACTORS,CHIEF FINANCIAL OFFICER,WA CONSULTANTS LTD,452051,7804.8,876328977
BEIS,Met Office,2021-02-09,04 CONTRACTORS,PROGRAMMES,WA CONSULTANTS LTD,452052,7675.68,876328977
BEIS,Met Office,2021-02-09,04 CONTRACTORS,TECHNOLOGY AND CIO,WA CONSULTANTS LTD,452053,8800,876328977
BEIS,Met Office,2021-02-09,04 CONTRACTORS,TECHNOLOGY AND CIO,WA CONSULTANTS LTD,452055,11000,876328977
BEIS,Met Office,2021-02-09,04 CONTRACTORS,TECHNOLOGY AND CIO,WA CONSULTANTS LTD,452056,11847.66,876328977
BEIS,Met Office,2021-02-09,04 CONTRACTORS,CHIEF FINANCIAL OFFICER,WA CONSULTANTS LTD,452071,675,876328977
BEIS,Met Office,2021-02-09,04 CONTRACTORS,TECHNOLOGY AND CIO,WA CONSULTANTS LTD,452072,12360,876328977
BEIS,Met Office,2021-02-09,04 CONTRACTORS,MARKETS,WA CONSULTANTS LTD,452073,3240,876328977
BEIS,Met Office,2021-02-09,04 CONTRACTORS,TECHNOLOGY AND CIO,WA CONSULTANTS LTD,452075,10050,876328977
BEIS,Met Office,2021-02-09,04 CONTRACTORS,CHIEF FINANCIAL OFFICER,WA CONSULTANTS LTD,452078,15000,876328977
BEIS,Met Office,2021-02-09,04 CONTRACTORS,TECHNOLOGY AND CIO,WA CONSULTANTS LTD,452079,8727.45,876328977
BEIS,Met Office,2021-02-09,04 CONTRACTORS,CHIEF FINANCIAL OFFICER,WA CONSULTANTS LTD,452080,8672,876328977
BEIS,Met Office,2021-02-09,04 CONTRACTORS,TECHNOLOGY AND CIO,WA CONSULTANTS LTD,452081,8915.6,876328977
BEIS,Met Office,2021-02-09,04 CONTRACTORS,PROGRAMMES,WA CONSULTANTS LTD,452082,10767.4,876328977
BEIS,Met Office,2021-02-09,04 CONTRACTORS,TECHNOLOGY AND CIO,WA CONSULTANTS LTD,452083,10770.6,876328977
BEIS,Met Office,2021-02-09,04 CONTRACTORS,TECHNOLOGY AND CIO,WA CONSULTANTS LTD,452084,5094.27,876328977
BEIS,Met Office,2021-02-09,04 CONTRACTORS,TECHNOLOGY AND CIO,WA CONSULTANTS LTD,452085,8800,876328977
BEIS,Met Office,2021-02-09,04 CONTRACTORS,CHIEF FINANCIAL OFFICER,WA CONSULTANTS LTD,452086,6962,876328977
BEIS,Met Office,2021-02-09,04 CONTRACTORS,TECHNOLOGY AND CIO,WA CONSULTANTS LTD,452087,15009.58,876328977
BEIS,Met Office,2021-02-16,04 CONTRACTORS,TECHNOLOGY AND CIO,WA CONSULTANTS LTD,452375,12964.6,876328977
BEIS,Met Office,2021-02-02,11 SERVICES,CHIEF FINANCIAL OFFICER,WEBEX COMMUNICATIONS UK LTD,451763,209.92,815974302
BEIS,Met Office,2021-02-16,06 ACCOMMODATION,MARKETS,WHITEHAVEN MARINA LTD,452389,50,947044906
BEIS,Met Office,2021-02-16,06 ACCOMMODATION,MARKETS,WHITEHAVEN MARINA LTD,452389,7.5,947044906
BEIS,Met Office,2021-02-16,06 ACCOMMODATION,MARKETS,WILLIAM PRENTICE,452387,400,-
BEIS,Met Office,2021-02-09,11 SERVICES,TECHNOLOGY AND CIO,WIREFAST LTD,452074,5576.71,749536001
BEIS,Met Office,2021-02-09,11 SERVICES,TECHNOLOGY AND CIO,WIREFAST LTD,452077,2388.86,749536001
BEIS,Met Office,2021-02-02,06 ACCOMMODATION,CHIEF FINANCIAL OFFICER,XEIAD,447487,13333.24,811321091
BEIS,Met Office,2021-02-02,11 SERVICES,CHIEF FINANCIAL OFFICER,XPEDITE SYSTEMS (UK) LTD,451533,100,599016994
BEIS,Met Office,2021-02-02,11 SERVICES,CHIEF FINANCIAL OFFICER,XPEDITE SYSTEMS (UK) LTD,451541,100,599016994
BEIS,Met Office,2021-02-11,11 SERVICES,CHIEF FINANCIAL OFFICER,XPEDITE SYSTEMS (UK) LTD,452122,100,599016994
BEIS,Met Office,2021-02-23,11 SERVICES,CHIEF FINANCIAL OFFICER,XPEDITE SYSTEMS (UK) LTD,452645,100,599016994
BEIS,Met Office,2021-02-09,11 SERVICES,CHIEF FINANCIAL OFFICER,XUPER,452057,795,316677090
BEIS,Met Office,2021-02-09,11 SERVICES,CHIEF FINANCIAL OFFICER,XUPER,452057,900,316677090
BEIS,Met Office,2021-02-09,11 SERVICES,CHIEF FINANCIAL OFFICER,XUPER,452057,795,316677090
BEIS,Met Office,2021-02-09,11 SERVICES,CHIEF FINANCIAL OFFICER,XUPER,452057,795,316677090
BEIS,Met Office,2021-02-09,11 SERVICES,CHIEF FINANCIAL OFFICER,XUPER,452057,2412.75,316677090
BEIS,Met Office,2021-02-09,11 SERVICES,CHIEF FINANCIAL OFFICER,XUPER,452057,2970,316677090
BEIS,Met Office,2021-02-09,11 SERVICES,CHIEF FINANCIAL OFFICER,XUPER,452057,795,316677090
BEIS,Met Office,2021-02-09,11 SERVICES,CHIEF FINANCIAL OFFICER,XUPER,452057,795,316677090
BEIS,Met Office,2021-02-09,11 SERVICES,CHIEF FINANCIAL OFFICER,XUPER,452057,795,316677090
BEIS,Met Office,2021-02-09,11 SERVICES,CHIEF FINANCIAL OFFICER,XUPER,452057,735,316677090
BEIS,Met Office,2021-02-09,11 SERVICES,CHIEF FINANCIAL OFFICER,XUPER,452057,795,316677090
BEIS,Met Office,2021-02-09,11 SERVICES,CHIEF FINANCIAL OFFICER,XUPER,452057,450,316677090
BEIS,Met Office,2021-02-09,10 EQUIPMENT MAINTENANCE,SERVICES,YOUNG CALIBRATION LIMITED,452042,3250,673900720
BEIS,Met Office,2021-02-09,10 EQUIPMENT MAINTENANCE,SERVICES,YOUNG CALIBRATION LIMITED,452042,10,673900720
